Publisher Label,Publisher URI,"Supplier ID","Supplier","Invoice No.","Amount (£)","Purpose","Transaction Number","Payment Date","Organisational Unit","Cost Centre(T)","Internal Category Number"
"Wolverhampton City Council","http://opendatacommunities.org/id/metropolitan-district-council/wolverhampton","703377","Eden Brown Limited","1134078","993.20","Agency Staff","130195129","06/12/2017","Revenues & Benefits","Revenues","R1100"
"Wolverhampton City Council","http://opendatacommunities.org/id/metropolitan-district-council/wolverhampton","703377","Eden Brown Limited","1135754","1,484.00","Agency Staff","130196515","20/12/2017","Capital Programme","Head of Projects and Works","R1100"
"Wolverhampton City Council","http://opendatacommunities.org/id/metropolitan-district-council/wolverhampton","703381","Eden Support Limited","26111720171130","137.20","TPP - Day Care","190398801","01/12/2017","Learning Disabilities Care Purchasing","LD Care Purchasing (Spot Placements)","R5430"
"Wolverhampton City Council","http://opendatacommunities.org/id/metropolitan-district-council/wolverhampton","703381","Eden Support Limited","26111720171130","123.48","TPP - Day Care","190398801","01/12/2017","Learning Disabilities Care Purchasing","LD Care Purchasing (Spot Placements)","R5430"
"Wolverhampton City Council","http://opendatacommunities.org/id/metropolitan-district-council/wolverhampton","703381","Eden Support Limited","26111720171130","100.00","TPP - Day Care","190398801","01/12/2017","Learning Disabilities Care Purchasing","LD Care Purchasing (Spot Placements)","R5430"
"Wolverhampton City Council","http://opendatacommunities.org/id/metropolitan-district-council/wolverhampton","703381","Eden Support Limited","26111720171130","82.32","TPP - Day Care","190398801","01/12/2017","Learning Disabilities Care Purchasing","LD Care Purchasing (Spot Placements)","R5430"
"Wolverhampton City Council","http://opendatacommunities.org/id/metropolitan-district-council/wolverhampton","703381","Eden Support Limited","26111720171130","200.00","TPP - Day Care","190398801","01/12/2017","Learning Disabilities Care Purchasing","LD Care Purchasing (Spot Placements)","R5430"
"Wolverhampton City Council","http://opendatacommunities.org/id/metropolitan-district-council/wolverhampton","703381","Eden Support Limited","26111720171130","100.00","TPP - Day Care","190398801","01/12/2017","Learning Disabilities Care Purchasing","LD Care Purchasing (Spot Placements)","R5430"
"Wolverhampton City Council","http://opendatacommunities.org/id/metropolitan-district-council/wolverhampton","703381","Eden Support Limited","26111720171130","264.11","TPP - Day Care","190398801","01/12/2017","Learning Disabilities Care Purchasing","LD Care Purchasing (Spot Placements)","R5430"
"Wolverhampton City Council","http://opendatacommunities.org/id/metropolitan-district-council/wolverhampton","703381","Eden Support Limited","26111720171130","273.00","TPP - Day Care","190398801","01/12/2017","Learning Disabilities Care Purchasing","LD Care Purchasing (Spot Placements)","R5430"
"Wolverhampton City Council","http://opendatacommunities.org/id/metropolitan-district-council/wolverhampton","703381","Eden Support Limited","26111720171130","240.10","TPP - Day Care","190398801","01/12/2017","Learning Disabilities Care Purchasing","LD Care Purchasing (Spot Placements)","R5430"
"Wolverhampton City Council","http://opendatacommunities.org/id/metropolitan-district-council/wolverhampton","703381","Eden Support Limited","26111720171130","192.08","TPP - Day Care","190398801","01/12/2017","Learning Disabilities Care Purchasing","LD Care Purchasing (Spot Placements)","R5430"
"Wolverhampton City Council","http://opendatacommunities.org/id/metropolitan-district-council/wolverhampton","703381","Eden Support Limited","26111720171130","100.00","TPP - Day Care","190398801","01/12/2017","Learning Disabilities Care Purchasing","LD Care Purchasing (Spot Placements)","R5430"
"Wolverhampton City Council","http://opendatacommunities.org/id/metropolitan-district-council/wolverhampton","703381","Eden Support Limited","26111720171130","250.00","TPP - Day Care","190398801","01/12/2017","Learning Disabilities Care Purchasing","LD Care Purchasing (Spot Placements)","R5430"
"Wolverhampton City Council","http://opendatacommunities.org/id/metropolitan-district-council/wolverhampton","703381","Eden Support Limited","26111720171130","264.11","TPP - Day Care","190398801","01/12/2017","Learning Disabilities Care Purchasing","LD Care Purchasing (Spot Placements)","R5430"
"Wolverhampton City Council","http://opendatacommunities.org/id/metropolitan-district-council/wolverhampton","703381","Eden Support Limited","26111720171130","185.22","TPP - Day Care","190398801","01/12/2017","Learning Disabilities Care Purchasing","LD Care Purchasing (Spot Placements)","R5430"
"Wolverhampton City Council","http://opendatacommunities.org/id/metropolitan-district-council/wolverhampton","703381","Eden Support Limited","26111720171130","250.00","TPP - Day Care","190398801","01/12/2017","Learning Disabilities Care Purchasing","LD Care Purchasing (Spot Placements)","R5430"
"Wolverhampton City Council","http://opendatacommunities.org/id/metropolitan-district-council/wolverhampton","703381","Eden Support Limited","26111720171130","455.00","TPP - Day Care","190398801","01/12/2017","Learning Disabilities Care Purchasing","LD Care Purchasing (Spot Placements)","R5430"
"Wolverhampton City Council","http://opendatacommunities.org/id/metropolitan-district-council/wolverhampton","703381","Eden Support Limited","26111720171130","455.00","TPP - Day Care","190398801","01/12/2017","Learning Disabilities Care Purchasing","LD Care Purchasing (Spot Placements)","R5430"
"Wolverhampton City Council","http://opendatacommunities.org/id/metropolitan-district-council/wolverhampton","703381","Eden Support Limited","26111720171130","50.00","TPP - Day Care","190398801","01/12/2017","Learning Disabilities Care Purchasing","LD Care Purchasing (Spot Placements)","R5430"
"Wolverhampton City Council","http://opendatacommunities.org/id/metropolitan-district-council/wolverhampton","703381","Eden Support Limited","26111720171130","96.04","TPP - Day Care","190398801","01/12/2017","Learning Disabilities Care Purchasing","LD Care Purchasing (Spot Placements)","R5430"
"Wolverhampton City Council","http://opendatacommunities.org/id/metropolitan-district-council/wolverhampton","703381","Eden Support Limited","26111720171130","102.90","TPP - Day Care","190398801","01/12/2017","Learning Disabilities Care Purchasing","LD Care Purchasing (Spot Placements)","R5430"
"Wolverhampton City Council","http://opendatacommunities.org/id/metropolitan-district-council/wolverhampton","703381","Eden Support Limited","26111720171130","150.92","TPP - Day Care","190398801","01/12/2017","Learning Disabilities Care Purchasing","LD Care Purchasing (Spot Placements)","R5430"
"Wolverhampton City Council","http://opendatacommunities.org/id/metropolitan-district-council/wolverhampton","703381","Eden Support Limited","26111720171130","150.92","TPP - Day Care","190398801","01/12/2017","Learning Disabilities Care Purchasing","LD Care Purchasing (Spot Placements)","R5430"
"Wolverhampton City Council","http://opendatacommunities.org/id/metropolitan-district-council/wolverhampton","703381","Eden Support Limited","26111720171130","54.88","TPP - Day Care","190398801","01/12/2017","Learning Disabilities Care Purchasing","LD Care Purchasing (Spot Placements)","R5430"
"Wolverhampton City Council","http://opendatacommunities.org/id/metropolitan-district-council/wolverhampton","703381","Eden Support Limited","26111720171130","150.00","TPP - Day Care","190398801","01/12/2017","Learning Disabilities Care Purchasing","LD Care Purchasing (Spot Placements)","R5430"
"Wolverhampton City Council","http://opendatacommunities.org/id/metropolitan-district-council/wolverhampton","703381","Eden Support Limited","26111720171130","100.00","TPP - Day Care","190398801","01/12/2017","Learning Disabilities Care Purchasing","LD Care Purchasing (Spot Placements)","R5430"
"Wolverhampton City Council","http://opendatacommunities.org/id/metropolitan-district-council/wolverhampton","703381","Eden Support Limited","19111720171130","150.00","TPP - Day Care","190398800","01/12/2017","Learning Disabilities Care Purchasing","LD Care Purchasing (Spot Placements)","R5430"
"Wolverhampton City Council","http://opendatacommunities.org/id/metropolitan-district-council/wolverhampton","703381","Eden Support Limited","19111720171130","100.00","TPP - Day Care","190398800","01/12/2017","Learning Disabilities Care Purchasing","LD Care Purchasing (Spot Placements)","R5430"
"Wolverhampton City Council","http://opendatacommunities.org/id/metropolitan-district-council/wolverhampton","703381","Eden Support Limited","19111720171130","102.90","TPP - Day Care","190398800","01/12/2017","Learning Disabilities Care Purchasing","LD Care Purchasing (Spot Placements)","R5430"
"Wolverhampton City Council","http://opendatacommunities.org/id/metropolitan-district-council/wolverhampton","703381","Eden Support Limited","19111720171130","150.92","TPP - Day Care","190398800","01/12/2017","Learning Disabilities Care Purchasing","LD Care Purchasing (Spot Placements)","R5430"
"Wolverhampton City Council","http://opendatacommunities.org/id/metropolitan-district-council/wolverhampton","703381","Eden Support Limited","19111720171130","150.92","TPP - Day Care","190398800","01/12/2017","Learning Disabilities Care Purchasing","LD Care Purchasing (Spot Placements)","R5430"
"Wolverhampton City Council","http://opendatacommunities.org/id/metropolitan-district-council/wolverhampton","703381","Eden Support Limited","19111720171130","273.00","TPP - Day Care","190398800","01/12/2017","Learning Disabilities Care Purchasing","LD Care Purchasing (Spot Placements)","R5430"
"Wolverhampton City Council","http://opendatacommunities.org/id/metropolitan-district-council/wolverhampton","703381","Eden Support Limited","19111720171130","240.10","TPP - Day Care","190398800","01/12/2017","Learning Disabilities Care Purchasing","LD Care Purchasing (Spot Placements)","R5430"
"Wolverhampton City Council","http://opendatacommunities.org/id/metropolitan-district-council/wolverhampton","703381","Eden Support Limited","19111720171130","192.08","TPP - Day Care","190398800","01/12/2017","Learning Disabilities Care Purchasing","LD Care Purchasing (Spot Placements)","R5430"
"Wolverhampton City Council","http://opendatacommunities.org/id/metropolitan-district-council/wolverhampton","703381","Eden Support Limited","19111720171130","123.48","TPP - Day Care","190398800","01/12/2017","Learning Disabilities Care Purchasing","LD Care Purchasing (Spot Placements)","R5430"
"Wolverhampton City Council","http://opendatacommunities.org/id/metropolitan-district-council/wolverhampton","703381","Eden Support Limited","19111720171130","150.00","TPP - Day Care","190398800","01/12/2017","Learning Disabilities Care Purchasing","LD Care Purchasing (Spot Placements)","R5430"
"Wolverhampton City Council","http://opendatacommunities.org/id/metropolitan-district-council/wolverhampton","703381","Eden Support Limited","19111720171130","82.32","TPP - Day Care","190398800","01/12/2017","Learning Disabilities Care Purchasing","LD Care Purchasing (Spot Placements)","R5430"
"Wolverhampton City Council","http://opendatacommunities.org/id/metropolitan-district-council/wolverhampton","703381","Eden Support Limited","19111720171130","200.00","TPP - Day Care","190398800","01/12/2017","Learning Disabilities Care Purchasing","LD Care Purchasing (Spot Placements)","R5430"
"Wolverhampton City Council","http://opendatacommunities.org/id/metropolitan-district-council/wolverhampton","703381","Eden Support Limited","19111720171130","185.22","TPP - Day Care","190398800","01/12/2017","Learning Disabilities Care Purchasing","LD Care Purchasing (Spot Placements)","R5430"
"Wolverhampton City Council","http://opendatacommunities.org/id/metropolitan-district-council/wolverhampton","703381","Eden Support Limited","19111720171130","250.00","TPP - Day Care","190398800","01/12/2017","Learning Disabilities Care Purchasing","LD Care Purchasing (Spot Placements)","R5430"
"Wolverhampton City Council","http://opendatacommunities.org/id/metropolitan-district-council/wolverhampton","703381","Eden Support Limited","19111720171130","455.00","TPP - Day Care","190398800","01/12/2017","Learning Disabilities Care Purchasing","LD Care Purchasing (Spot Placements)","R5430"
"Wolverhampton City Council","http://opendatacommunities.org/id/metropolitan-district-council/wolverhampton","703381","Eden Support Limited","19111720171130","455.00","TPP - Day Care","190398800","01/12/2017","Learning Disabilities Care Purchasing","LD Care Purchasing (Spot Placements)","R5430"
"Wolverhampton City Council","http://opendatacommunities.org/id/metropolitan-district-council/wolverhampton","703381","Eden Support Limited","19111720171130","50.00","TPP - Day Care","190398800","01/12/2017","Learning Disabilities Care Purchasing","LD Care Purchasing (Spot Placements)","R5430"
"Wolverhampton City Council","http://opendatacommunities.org/id/metropolitan-district-council/wolverhampton","703381","Eden Support Limited","19111720171130","96.04","TPP - Day Care","190398800","01/12/2017","Learning Disabilities Care Purchasing","LD Care Purchasing (Spot Placements)","R5430"
"Wolverhampton City Council","http://opendatacommunities.org/id/metropolitan-district-council/wolverhampton","703381","Eden Support Limited","19111720171130","54.88","TPP - Day Care","190398800","01/12/2017","Learning Disabilities Care Purchasing","LD Care Purchasing (Spot Placements)","R5430"
"Wolverhampton City Council","http://opendatacommunities.org/id/metropolitan-district-council/wolverhampton","703381","Eden Support Limited","19111720171130","100.00","TPP - Day Care","190398800","01/12/2017","Learning Disabilities Care Purchasing","LD Care Purchasing (Spot Placements)","R5430"
"Wolverhampton City Council","http://opendatacommunities.org/id/metropolitan-district-council/wolverhampton","703381","Eden Support Limited","19111720171130","264.11","TPP - Day Care","190398800","01/12/2017","Learning Disabilities Care Purchasing","LD Care Purchasing (Spot Placements)","R5430"
"Wolverhampton City Council","http://opendatacommunities.org/id/metropolitan-district-council/wolverhampton","703381","Eden Support Limited","19111720171130","264.11","TPP - Day Care","190398800","01/12/2017","Learning Disabilities Care Purchasing","LD Care Purchasing (Spot Placements)","R5430"
"Wolverhampton City Council","http://opendatacommunities.org/id/metropolitan-district-council/wolverhampton","703381","Eden Support Limited","19111720171130","100.00","TPP - Day Care","190398800","01/12/2017","Learning Disabilities Care Purchasing","LD Care Purchasing (Spot Placements)","R5430"
"Wolverhampton City Council","http://opendatacommunities.org/id/metropolitan-district-council/wolverhampton","703381","Eden Support Limited","19111720171130","200.00","TPP - Day Care","190398800","01/12/2017","Learning Disabilities Care Purchasing","LD Care Purchasing (Spot Placements)","R5430"
"Wolverhampton City Council","http://opendatacommunities.org/id/metropolitan-district-council/wolverhampton","703381","Eden Support Limited","19111720171130","137.20","TPP - Day Care","190398800","01/12/2017","Learning Disabilities Care Purchasing","LD Care Purchasing (Spot Placements)","R5430"
"Wolverhampton City Council","http://opendatacommunities.org/id/metropolitan-district-council/wolverhampton","703381","Eden Support Limited","12111720171130","273.00","TPP - Day Care","190398799","01/12/2017","Learning Disabilities Care Purchasing","LD Care Purchasing (Spot Placements)","R5430"
"Wolverhampton City Council","http://opendatacommunities.org/id/metropolitan-district-council/wolverhampton","703381","Eden Support Limited","12111720171130","240.10","TPP - Day Care","190398799","01/12/2017","Learning Disabilities Care Purchasing","LD Care Purchasing (Spot Placements)","R5430"
"Wolverhampton City Council","http://opendatacommunities.org/id/metropolitan-district-council/wolverhampton","703381","Eden Support Limited","12111720171130","192.08","TPP - Day Care","190398799","01/12/2017","Learning Disabilities Care Purchasing","LD Care Purchasing (Spot Placements)","R5430"
"Wolverhampton City Council","http://opendatacommunities.org/id/metropolitan-district-council/wolverhampton","703381","Eden Support Limited","12111720171130","100.00","TPP - Day Care","190398799","01/12/2017","Learning Disabilities Care Purchasing","LD Care Purchasing (Spot Placements)","R5430"
"Wolverhampton City Council","http://opendatacommunities.org/id/metropolitan-district-council/wolverhampton","703381","Eden Support Limited","12111720171130","264.11","TPP - Day Care","190398799","01/12/2017","Learning Disabilities Care Purchasing","LD Care Purchasing (Spot Placements)","R5430"
"Wolverhampton City Council","http://opendatacommunities.org/id/metropolitan-district-council/wolverhampton","703381","Eden Support Limited","12111720171130","264.11","TPP - Day Care","190398799","01/12/2017","Learning Disabilities Care Purchasing","LD Care Purchasing (Spot Placements)","R5430"
"Wolverhampton City Council","http://opendatacommunities.org/id/metropolitan-district-council/wolverhampton","703381","Eden Support Limited","12111720171130","185.22","TPP - Day Care","190398799","01/12/2017","Learning Disabilities Care Purchasing","LD Care Purchasing (Spot Placements)","R5430"
"Wolverhampton City Council","http://opendatacommunities.org/id/metropolitan-district-council/wolverhampton","703381","Eden Support Limited","12111720171130","250.00","TPP - Day Care","190398799","01/12/2017","Learning Disabilities Care Purchasing","LD Care Purchasing (Spot Placements)","R5430"
"Wolverhampton City Council","http://opendatacommunities.org/id/metropolitan-district-council/wolverhampton","703381","Eden Support Limited","12111720171130","455.00","TPP - Day Care","190398799","01/12/2017","Learning Disabilities Care Purchasing","LD Care Purchasing (Spot Placements)","R5430"
"Wolverhampton City Council","http://opendatacommunities.org/id/metropolitan-district-council/wolverhampton","703381","Eden Support Limited","12111720171130","455.00","TPP - Day Care","190398799","01/12/2017","Learning Disabilities Care Purchasing","LD Care Purchasing (Spot Placements)","R5430"
"Wolverhampton City Council","http://opendatacommunities.org/id/metropolitan-district-council/wolverhampton","703381","Eden Support Limited","12111720171130","50.00","TPP - Day Care","190398799","01/12/2017","Learning Disabilities Care Purchasing","LD Care Purchasing (Spot Placements)","R5430"
"Wolverhampton City Council","http://opendatacommunities.org/id/metropolitan-district-council/wolverhampton","703381","Eden Support Limited","12111720171130","96.04","TPP - Day Care","190398799","01/12/2017","Learning Disabilities Care Purchasing","LD Care Purchasing (Spot Placements)","R5430"
"Wolverhampton City Council","http://opendatacommunities.org/id/metropolitan-district-council/wolverhampton","703381","Eden Support Limited","12111720171130","54.88","TPP - Day Care","190398799","01/12/2017","Learning Disabilities Care Purchasing","LD Care Purchasing (Spot Placements)","R5430"
"Wolverhampton City Council","http://opendatacommunities.org/id/metropolitan-district-council/wolverhampton","703381","Eden Support Limited","12111720171130","150.00","TPP - Day Care","190398799","01/12/2017","Learning Disabilities Care Purchasing","LD Care Purchasing (Spot Placements)","R5430"
"Wolverhampton City Council","http://opendatacommunities.org/id/metropolitan-district-council/wolverhampton","703381","Eden Support Limited","12111720171130","100.00","TPP - Day Care","190398799","01/12/2017","Learning Disabilities Care Purchasing","LD Care Purchasing (Spot Placements)","R5430"
"Wolverhampton City Council","http://opendatacommunities.org/id/metropolitan-district-council/wolverhampton","703381","Eden Support Limited","12111720171130","102.90","TPP - Day Care","190398799","01/12/2017","Learning Disabilities Care Purchasing","LD Care Purchasing (Spot Placements)","R5430"
"Wolverhampton City Council","http://opendatacommunities.org/id/metropolitan-district-council/wolverhampton","703381","Eden Support Limited","12111720171130","150.92","TPP - Day Care","190398799","01/12/2017","Learning Disabilities Care Purchasing","LD Care Purchasing (Spot Placements)","R5430"
"Wolverhampton City Council","http://opendatacommunities.org/id/metropolitan-district-council/wolverhampton","703381","Eden Support Limited","12111720171130","150.92","TPP - Day Care","190398799","01/12/2017","Learning Disabilities Care Purchasing","LD Care Purchasing (Spot Placements)","R5430"
"Wolverhampton City Council","http://opendatacommunities.org/id/metropolitan-district-council/wolverhampton","703381","Eden Support Limited","12111720171130","250.00","TPP - Day Care","190398799","01/12/2017","Learning Disabilities Care Purchasing","LD Care Purchasing (Spot Placements)","R5430"
"Wolverhampton City Council","http://opendatacommunities.org/id/metropolitan-district-council/wolverhampton","703381","Eden Support Limited","12111720171130","137.20","TPP - Day Care","190398799","01/12/2017","Learning Disabilities Care Purchasing","LD Care Purchasing (Spot Placements)","R5430"
"Wolverhampton City Council","http://opendatacommunities.org/id/metropolitan-district-council/wolverhampton","703381","Eden Support Limited","12111720171130","123.48","TPP - Day Care","190398799","01/12/2017","Learning Disabilities Care Purchasing","LD Care Purchasing (Spot Placements)","R5430"
"Wolverhampton City Council","http://opendatacommunities.org/id/metropolitan-district-council/wolverhampton","703381","Eden Support Limited","12111720171130","150.00","TPP - Day Care","190398799","01/12/2017","Learning Disabilities Care Purchasing","LD Care Purchasing (Spot Placements)","R5430"
"Wolverhampton City Council","http://opendatacommunities.org/id/metropolitan-district-council/wolverhampton","703381","Eden Support Limited","12111720171130","82.32","TPP - Day Care","190398799","01/12/2017","Learning Disabilities Care Purchasing","LD Care Purchasing (Spot Placements)","R5430"
"Wolverhampton City Council","http://opendatacommunities.org/id/metropolitan-district-council/wolverhampton","703381","Eden Support Limited","12111720171130","200.00","TPP - Day Care","190398799","01/12/2017","Learning Disabilities Care Purchasing","LD Care Purchasing (Spot Placements)","R5430"
"Wolverhampton City Council","http://opendatacommunities.org/id/metropolitan-district-council/wolverhampton","703381","Eden Support Limited","12111720171130","100.00","TPP - Day Care","190398799","01/12/2017","Learning Disabilities Care Purchasing","LD Care Purchasing (Spot Placements)","R5430"
"Wolverhampton City Council","http://opendatacommunities.org/id/metropolitan-district-council/wolverhampton","703381","Eden Support Limited","05111720171130","273.00","TPP - Day Care","190398798","01/12/2017","Learning Disabilities Care Purchasing","LD Care Purchasing (Spot Placements)","R5430"
"Wolverhampton City Council","http://opendatacommunities.org/id/metropolitan-district-council/wolverhampton","703381","Eden Support Limited","05111720171130","240.10","TPP - Day Care","190398798","01/12/2017","Learning Disabilities Care Purchasing","LD Care Purchasing (Spot Placements)","R5430"
"Wolverhampton City Council","http://opendatacommunities.org/id/metropolitan-district-council/wolverhampton","703381","Eden Support Limited","05111720171130","192.08","TPP - Day Care","190398798","01/12/2017","Learning Disabilities Care Purchasing","LD Care Purchasing (Spot Placements)","R5430"
"Wolverhampton City Council","http://opendatacommunities.org/id/metropolitan-district-council/wolverhampton","703381","Eden Support Limited","05111720171130","185.22","TPP - Day Care","190398798","01/12/2017","Learning Disabilities Care Purchasing","LD Care Purchasing (Spot Placements)","R5430"
"Wolverhampton City Council","http://opendatacommunities.org/id/metropolitan-district-council/wolverhampton","703381","Eden Support Limited","05111720171130","250.00","TPP - Day Care","190398798","01/12/2017","Learning Disabilities Care Purchasing","LD Care Purchasing (Spot Placements)","R5430"
"Wolverhampton City Council","http://opendatacommunities.org/id/metropolitan-district-council/wolverhampton","703381","Eden Support Limited","05111720171130","123.48","TPP - Day Care","190398798","01/12/2017","Learning Disabilities Care Purchasing","LD Care Purchasing (Spot Placements)","R5430"
"Wolverhampton City Council","http://opendatacommunities.org/id/metropolitan-district-council/wolverhampton","703381","Eden Support Limited","05111720171130","150.00","TPP - Day Care","190398798","01/12/2017","Learning Disabilities Care Purchasing","LD Care Purchasing (Spot Placements)","R5430"
"Wolverhampton City Council","http://opendatacommunities.org/id/metropolitan-district-council/wolverhampton","703381","Eden Support Limited","05111720171130","82.32","TPP - Day Care","190398798","01/12/2017","Learning Disabilities Care Purchasing","LD Care Purchasing (Spot Placements)","R5430"
"Wolverhampton City Council","http://opendatacommunities.org/id/metropolitan-district-council/wolverhampton","703381","Eden Support Limited","05111720171130","200.00","TPP - Day Care","190398798","01/12/2017","Learning Disabilities Care Purchasing","LD Care Purchasing (Spot Placements)","R5430"
"Wolverhampton City Council","http://opendatacommunities.org/id/metropolitan-district-council/wolverhampton","703381","Eden Support Limited","05111720171130","100.00","TPP - Day Care","190398798","01/12/2017","Learning Disabilities Care Purchasing","LD Care Purchasing (Spot Placements)","R5430"
"Wolverhampton City Council","http://opendatacommunities.org/id/metropolitan-district-council/wolverhampton","703381","Eden Support Limited","05111720171130","264.11","TPP - Day Care","190398798","01/12/2017","Learning Disabilities Care Purchasing","LD Care Purchasing (Spot Placements)","R5430"
"Wolverhampton City Council","http://opendatacommunities.org/id/metropolitan-district-council/wolverhampton","703381","Eden Support Limited","05111720171130","264.11","TPP - Day Care","190398798","01/12/2017","Learning Disabilities Care Purchasing","LD Care Purchasing (Spot Placements)","R5430"
"Wolverhampton City Council","http://opendatacommunities.org/id/metropolitan-district-council/wolverhampton","703381","Eden Support Limited","05111720171130","100.00","TPP - Day Care","190398798","01/12/2017","Learning Disabilities Care Purchasing","LD Care Purchasing (Spot Placements)","R5430"
"Wolverhampton City Council","http://opendatacommunities.org/id/metropolitan-district-council/wolverhampton","703381","Eden Support Limited","05111720171130","250.00","TPP - Day Care","190398798","01/12/2017","Learning Disabilities Care Purchasing","LD Care Purchasing (Spot Placements)","R5430"
"Wolverhampton City Council","http://opendatacommunities.org/id/metropolitan-district-council/wolverhampton","703381","Eden Support Limited","05111720171130","137.20","TPP - Day Care","190398798","01/12/2017","Learning Disabilities Care Purchasing","LD Care Purchasing (Spot Placements)","R5430"
"Wolverhampton City Council","http://opendatacommunities.org/id/metropolitan-district-council/wolverhampton","703381","Eden Support Limited","05111720171130","455.00","TPP - Day Care","190398798","01/12/2017","Learning Disabilities Care Purchasing","LD Care Purchasing (Spot Placements)","R5430"
"Wolverhampton City Council","http://opendatacommunities.org/id/metropolitan-district-council/wolverhampton","703381","Eden Support Limited","05111720171130","455.00","TPP - Day Care","190398798","01/12/2017","Learning Disabilities Care Purchasing","LD Care Purchasing (Spot Placements)","R5430"
"Wolverhampton City Council","http://opendatacommunities.org/id/metropolitan-district-council/wolverhampton","703381","Eden Support Limited","05111720171130","50.00","TPP - Day Care","190398798","01/12/2017","Learning Disabilities Care Purchasing","LD Care Purchasing (Spot Placements)","R5430"
"Wolverhampton City Council","http://opendatacommunities.org/id/metropolitan-district-council/wolverhampton","703381","Eden Support Limited","05111720171130","96.04","TPP - Day Care","190398798","01/12/2017","Learning Disabilities Care Purchasing","LD Care Purchasing (Spot Placements)","R5430"
"Wolverhampton City Council","http://opendatacommunities.org/id/metropolitan-district-council/wolverhampton","703381","Eden Support Limited","05111720171130","54.88","TPP - Day Care","190398798","01/12/2017","Learning Disabilities Care Purchasing","LD Care Purchasing (Spot Placements)","R5430"
"Wolverhampton City Council","http://opendatacommunities.org/id/metropolitan-district-council/wolverhampton","703381","Eden Support Limited","05111720171130","150.00","TPP - Day Care","190398798","01/12/2017","Learning Disabilities Care Purchasing","LD Care Purchasing (Spot Placements)","R5430"
"Wolverhampton City Council","http://opendatacommunities.org/id/metropolitan-district-council/wolverhampton","703381","Eden Support Limited","05111720171130","100.00","TPP - Day Care","190398798","01/12/2017","Learning Disabilities Care Purchasing","LD Care Purchasing (Spot Placements)","R5430"
"Wolverhampton City Council","http://opendatacommunities.org/id/metropolitan-district-council/wolverhampton","703383","Edexcel  (Was Edexcel Limited)","098969 - Z1706","67.00","Exam Expenses (Non-Employee)","130197764","06/12/2017","Adult Education","Foundation Studies Delivery Area","R4630"
"Wolverhampton City Council","http://opendatacommunities.org/id/metropolitan-district-council/wolverhampton","703383","Edexcel  (Was Edexcel Limited)","110489 - Z1711","45.60","Exam Expenses (Non-Employee)","130197765","13/12/2017","Adult Education","Discretionary Fund","R4630"
"Wolverhampton City Council","http://opendatacommunities.org/id/metropolitan-district-council/wolverhampton","703383","Edexcel  (Was Edexcel Limited)","098093 - Z1707","47.00","Exam Expenses (Non-Employee)","130197763","06/12/2017","Adult Education","Foundation Studies Delivery Area","R4630"
"Wolverhampton City Council","http://opendatacommunities.org/id/metropolitan-district-council/wolverhampton","703395","Edmundson Electrical Limited","019 - 016871","240.00","Materials","130196235","06/12/2017","Maintenance Programme","Civic Centre Repairs & Maintenance","R4007"
"Wolverhampton City Council","http://opendatacommunities.org/id/metropolitan-district-council/wolverhampton","703395","Edmundson Electrical Limited","019 - 022110","169.83","Materials","130199169","27/12/2017","Maintenance Programme","Civic Centre Repairs & Maintenance","R4007"
"Wolverhampton City Council","http://opendatacommunities.org/id/metropolitan-district-council/wolverhampton","703395","Edmundson Electrical Limited","230-319730","5.40","Equipment - Purchase","190405268","21/12/2017","Fleet Services","Fleet Management","R4000"
"Wolverhampton City Council","http://opendatacommunities.org/id/metropolitan-district-council/wolverhampton","703395","Edmundson Electrical Limited","019 - 022425","78.12","Materials","130199170","27/12/2017","Maintenance Programme","Civic Centre Repairs & Maintenance","R4007"
"Wolverhampton City Council","http://opendatacommunities.org/id/metropolitan-district-council/wolverhampton","703395","Edmundson Electrical Limited","019 - 016494","69.80","Materials","130196234","06/12/2017","Maintenance Programme","Civic Centre Repairs & Maintenance","R4007"
"Wolverhampton City Council","http://opendatacommunities.org/id/metropolitan-district-council/wolverhampton","703395","Edmundson Electrical Limited","019 - 016351","12.64","Materials","130196233","06/12/2017","Maintenance Programme","Civic Centre Repairs & Maintenance","R4007"
"Wolverhampton City Council","http://opendatacommunities.org/id/metropolitan-district-council/wolverhampton","703395","Edmundson Electrical Limited","230 - 315875","27.00","Cleaning Supplies and Materials","130199112","20/12/2017","Strategic Organisation Development","Global Budgets","R2705"
"Wolverhampton City Council","http://opendatacommunities.org/id/metropolitan-district-council/wolverhampton","703395","Edmundson Electrical Limited","019 - 016236","374.74","Materials","130196721","01/12/2017","Maintenance Programme","Civic Centre Repairs & Maintenance","R4007"
"Wolverhampton City Council","http://opendatacommunities.org/id/metropolitan-district-council/wolverhampton","703395","Edmundson Electrical Limited","019 - 017876","1.55","Materials","130198389","15/12/2017","Maintenance Programme","Civic Centre Repairs & Maintenance","R4007"
"Wolverhampton City Council","http://opendatacommunities.org/id/metropolitan-district-council/wolverhampton","703395","Edmundson Electrical Limited","019 - 019401","663.17","Materials","130198390","15/12/2017","Maintenance Programme","Civic Centre Repairs & Maintenance","R4007"
"Wolverhampton City Council","http://opendatacommunities.org/id/metropolitan-district-council/wolverhampton","703444","Veriserv Limited","101127","24.50","R&M - Departmental planned (external)","130194326","06/12/2017","Maintenance Programme","Centralised R&M","R2001"
"Wolverhampton City Council","http://opendatacommunities.org/id/metropolitan-district-council/wolverhampton","703444","Veriserv Limited","101314","24.50","R&M - Departmental planned (external)","130194592","06/12/2017","Maintenance Programme","Centralised R&M","R2001"
"Wolverhampton City Council","http://opendatacommunities.org/id/metropolitan-district-council/wolverhampton","703444","Veriserv Limited","101803","41.30","R&M - Departmental planned (external)","130198548","13/12/2017","Maintenance Programme","Centralised R&M","R2001"
"Wolverhampton City Council","http://opendatacommunities.org/id/metropolitan-district-council/wolverhampton","703444","Veriserv Limited","101707","24.50","R&M - Departmental planned (external)","130194333","06/12/2017","Maintenance Programme","Centralised R&M","R2001"
"Wolverhampton City Council","http://opendatacommunities.org/id/metropolitan-district-council/wolverhampton","703444","Veriserv Limited","101313","24.50","R&M - Departmental planned (external)","130194591","01/12/2017","Maintenance Programme","Centralised R&M","R2001"
"Wolverhampton City Council","http://opendatacommunities.org/id/metropolitan-district-council/wolverhampton","703444","Veriserv Limited","101686","959.93","R&M - Departmental planned (external)","130194332","06/12/2017","Maintenance Programme","Centralised R&M","R2001"
"Wolverhampton City Council","http://opendatacommunities.org/id/metropolitan-district-council/wolverhampton","703457","Elliott Group Limited","15158763","158.40","Hire of Plant","130195879","06/12/2017","Environmental Maintenance","Ground Maintenance West","R3201"
"Wolverhampton City Council","http://opendatacommunities.org/id/metropolitan-district-council/wolverhampton","703472","EMB Excellence Limited","0000014493","377.25","Subscriptions","130198189","06/12/2017","Environmental Maintenance","Street Cleansing Overheads","R4701"
"Wolverhampton City Council","http://opendatacommunities.org/id/metropolitan-district-council/wolverhampton","703504","Enterprise Managed Services Limited","90643872","84.89","TPP - Waste Disposal","130196062","06/12/2017","Older People Provider Services","Blakenhall Resource Centre","R5003"
"Wolverhampton City Council","http://opendatacommunities.org/id/metropolitan-district-council/wolverhampton","703504","Enterprise Managed Services Limited","0090643777","1,772.69","TPP - Waste Disposal","130195691","06/12/2017","Markets","Bilston Market and Licensed Operations","R5003"
"Wolverhampton City Council","http://opendatacommunities.org/id/metropolitan-district-council/wolverhampton","703504","Enterprise Managed Services Limited","90643898","293.85","TPP - Waste Disposal","130196064","21/12/2017","Bereavement Services","Coroners","R5003"
"Wolverhampton City Council","http://opendatacommunities.org/id/metropolitan-district-council/wolverhampton","703504","Enterprise Managed Services Limited","0090611089","2,104.21","TPP - Waste Disposal","130199643","29/12/2017","Markets","Wolverhampton Indoor and Open Market","R5003"
"Wolverhampton City Council","http://opendatacommunities.org/id/metropolitan-district-council/wolverhampton","703504","Enterprise Managed Services Limited","0090648325","0.04","TPP - Waste Disposal","130197976","27/12/2017","Markets","Wholesale Market Facilities Management","R5003"
"Wolverhampton City Council","http://opendatacommunities.org/id/metropolitan-district-council/wolverhampton","703504","Enterprise Managed Services Limited","0090648325","0.04","TPP - Waste Disposal","130197976","27/12/2017","Markets","Wholesale Market Facilities Management","R5003"
"Wolverhampton City Council","http://opendatacommunities.org/id/metropolitan-district-council/wolverhampton","703504","Enterprise Managed Services Limited","0090648325","6,551.97","TPP - Waste Disposal","130197976","27/12/2017","Markets","Wholesale Market Facilities Management","R5003"
"Wolverhampton City Council","http://opendatacommunities.org/id/metropolitan-district-council/wolverhampton","703504","Enterprise Managed Services Limited","0090648325","0.01","TPP - Waste Disposal","130197976","27/12/2017","Markets","Wholesale Market Facilities Management","R5003"
"Wolverhampton City Council","http://opendatacommunities.org/id/metropolitan-district-council/wolverhampton","703504","Enterprise Managed Services Limited","0090648325","0.02","TPP - Waste Disposal","130197976","27/12/2017","Markets","Wholesale Market Facilities Management","R5003"
"Wolverhampton City Council","http://opendatacommunities.org/id/metropolitan-district-council/wolverhampton","703504","Enterprise Managed Services Limited","0090648361","380.40","TPP - Waste Disposal","130197979","27/12/2017","Markets","Wednesfield Street Market","R5003"
"Wolverhampton City Council","http://opendatacommunities.org/id/metropolitan-district-council/wolverhampton","703504","Enterprise Managed Services Limited","0090638300","2,094.44","TPP - Waste Disposal","130198880","13/12/2017","Markets","Wolverhampton Indoor and Open Market","R5003"
"Wolverhampton City Council","http://opendatacommunities.org/id/metropolitan-district-council/wolverhampton","703504","Enterprise Managed Services Limited","90643897","435.00","TPP - Waste Disposal","130195538","06/12/2017","Markets","Wolverhampton Indoor and Open Market","R5003"
"Wolverhampton City Council","http://opendatacommunities.org/id/metropolitan-district-council/wolverhampton","703504","Enterprise Managed Services Limited","0090643784","2,297.49","TPP - Waste Disposal","130195537","06/12/2017","Markets","Wolverhampton Indoor and Open Market","R5003"
"Wolverhampton City Council","http://opendatacommunities.org/id/metropolitan-district-council/wolverhampton","703504","Enterprise Managed Services Limited","0090646595","315.28","TPP - Waste Disposal","130196890","20/12/2017","Visitor Economy","Civic Halls - CHIP","R5003"
"Wolverhampton City Council","http://opendatacommunities.org/id/metropolitan-district-council/wolverhampton","703504","Enterprise Managed Services Limited","0090648522","341.64","Refuse Collection","130198549","29/12/2017","Visitor Economy","Art Gallery","R2704"
"Wolverhampton City Council","http://opendatacommunities.org/id/metropolitan-district-council/wolverhampton","703504","Enterprise Managed Services Limited","90644825","946.85","TPP - Waste Disposal","130196892","13/12/2017","Older People Provider Services","Bradley Lodge Resource Centre","R5003"
"Wolverhampton City Council","http://opendatacommunities.org/id/metropolitan-district-council/wolverhampton","703504","Enterprise Managed Services Limited","0090648139","800.00","TPP - Waste Disposal","130197974","27/12/2017","Environmental Maintenance","Ground Maintenance East","R5003"
"Wolverhampton City Council","http://opendatacommunities.org/id/metropolitan-district-council/wolverhampton","703504","Enterprise Managed Services Limited","0090648328","365.00","TPP - Waste Disposal","130197978","27/12/2017","Facilities Management","Civic Centre","R5003"
"Wolverhampton City Council","http://opendatacommunities.org/id/metropolitan-district-council/wolverhampton","703504","Enterprise Managed Services Limited","0090643783","603.00","TPP - Waste Disposal","130195536","06/12/2017","Facilities Management","Civic Centre","R5003"
"Wolverhampton City Council","http://opendatacommunities.org/id/metropolitan-district-council/wolverhampton","703504","Enterprise Managed Services Limited","0090643782","1,476.75","TPP - Waste Disposal","130195535","06/12/2017","Facilities Management","Civic Centre","R5003"
"Wolverhampton City Council","http://opendatacommunities.org/id/metropolitan-district-council/wolverhampton","703504","Enterprise Managed Services Limited","0090648329","1,851.66","TPP - Waste Disposal","130198881","27/12/2017","Markets","Wolverhampton Indoor and Open Market","R5003"
"Wolverhampton City Council","http://opendatacommunities.org/id/metropolitan-district-council/wolverhampton","703504","Enterprise Managed Services Limited","0090648327","0.01","TPP - Waste Disposal","130197977","27/12/2017","Facilities Management","Civic Centre","R5003"
"Wolverhampton City Council","http://opendatacommunities.org/id/metropolitan-district-council/wolverhampton","703504","Enterprise Managed Services Limited","0090648327","1,561.63","TPP - Waste Disposal","130197977","27/12/2017","Facilities Management","Civic Centre","R5003"
"Wolverhampton City Council","http://opendatacommunities.org/id/metropolitan-district-council/wolverhampton","703504","Enterprise Managed Services Limited","0090633967","2,630.18","TPP - Waste Disposal","130198879","13/12/2017","Markets","Wolverhampton Indoor and Open Market","R5003"
"Wolverhampton City Council","http://opendatacommunities.org/id/metropolitan-district-council/wolverhampton","703504","Enterprise Managed Services Limited","0090644099","863.76","TPP - Waste Disposal","130195692","08/12/2017","Facilities Management","Management of Vacant Properties","R5003"
"Wolverhampton City Council","http://opendatacommunities.org/id/metropolitan-district-council/wolverhampton","703504","Enterprise Managed Services Limited","0090643779","7,302.20","TPP - Waste Disposal","130195534","06/12/2017","Markets","Wholesale Market Facilities Management","R5003"
"Wolverhampton City Council","http://opendatacommunities.org/id/metropolitan-district-council/wolverhampton","703504","Enterprise Managed Services Limited","0090646601","589.51","TPP - Waste Disposal","130196891","20/12/2017","Visitor Economy","Civic Halls Non-Direct Event Management Account","R5003"
"Wolverhampton City Council","http://opendatacommunities.org/id/metropolitan-district-council/wolverhampton","703504","Enterprise Managed Services Limited","90643890","430.98","TPP - Waste Disposal","130196063","06/12/2017","Learning Disability Provider","Ernest Bold Court","R5003"
"Wolverhampton City Council","http://opendatacommunities.org/id/metropolitan-district-council/wolverhampton","703504","Enterprise Managed Services Limited","90648367","3,679.54","TPP - Waste Disposal","130197980","27/12/2017","Waste and Recycling Service","Waste Collection and Recycling Service - General","R5003"
"Wolverhampton City Council","http://opendatacommunities.org/id/metropolitan-district-council/wolverhampton","703504","Enterprise Managed Services Limited","0090648322","1,571.99","TPP - Waste Disposal","130197975","27/12/2017","Markets","Bilston Market and Licensed Operations","R5003"
"Wolverhampton City Council","http://opendatacommunities.org/id/metropolitan-district-council/wolverhampton","703504","Enterprise Managed Services Limited","0090648322","0.01","TPP - Waste Disposal","130197975","27/12/2017","Markets","Bilston Market and Licensed Operations","R5003"
"Wolverhampton City Council","http://opendatacommunities.org/id/metropolitan-district-council/wolverhampton","703504","Enterprise Managed Services Limited","0090648322","0.01","TPP - Waste Disposal","130197975","27/12/2017","Markets","Bilston Market and Licensed Operations","R5003"
"Wolverhampton City Council","http://opendatacommunities.org/id/metropolitan-district-council/wolverhampton","703504","Enterprise Managed Services Limited","0090648322","0.01","TPP - Waste Disposal","130197975","27/12/2017","Markets","Bilston Market and Licensed Operations","R5003"
"Wolverhampton City Council","http://opendatacommunities.org/id/metropolitan-district-council/wolverhampton","703504","Enterprise Managed Services Limited","0090648322","0.01","TPP - Waste Disposal","130197975","27/12/2017","Markets","Bilston Market and Licensed Operations","R5003"
"Wolverhampton City Council","http://opendatacommunities.org/id/metropolitan-district-council/wolverhampton","703504","Enterprise Managed Services Limited","0090648322","0.01","TPP - Waste Disposal","130197975","27/12/2017","Markets","Bilston Market and Licensed Operations","R5003"
"Wolverhampton City Council","http://opendatacommunities.org/id/metropolitan-district-council/wolverhampton","703504","Enterprise Managed Services Limited","0090648322","0.01","TPP - Waste Disposal","130197975","27/12/2017","Markets","Bilston Market and Licensed Operations","R5003"
"Wolverhampton City Council","http://opendatacommunities.org/id/metropolitan-district-council/wolverhampton","703504","Enterprise Managed Services Limited","0090648322","0.01","TPP - Waste Disposal","130197975","27/12/2017","Markets","Bilston Market and Licensed Operations","R5003"
"Wolverhampton City Council","http://opendatacommunities.org/id/metropolitan-district-council/wolverhampton","703504","Enterprise Managed Services Limited","90645551","11,270.31","TPP - Waste Disposal","130196517","15/12/2017","Waste and Recycling Service","Waste Disposal - General","R5003"
"Wolverhampton City Council","http://opendatacommunities.org/id/metropolitan-district-council/wolverhampton","703504","Enterprise Managed Services Limited","0090644813","100.00","Services - Professional Fees","130196236","13/12/2017","Public Protection","Regulatory Services - Works in Default","R4400"
"Wolverhampton City Council","http://opendatacommunities.org/id/metropolitan-district-council/wolverhampton","703504","Enterprise Managed Services Limited","90648336","691,665.00","TPP - Waste Disposal","130199298","29/12/2017","Waste and Recycling Service","Waste Collection and Recycling Service - General","R5003"
"Wolverhampton City Council","http://opendatacommunities.org/id/metropolitan-district-council/wolverhampton","703517","Environmental Waste Controls Limited","819575","827.53","Equipment - Hire","130196893","13/12/2017","Markets","Bilston Market and Licensed Operations","R4001"
"Wolverhampton City Council","http://opendatacommunities.org/id/metropolitan-district-council/wolverhampton","703535","Escape Mobility Company Limited.","DEB 000496 / FACT 20170508","160.00","Equipment - R & M","130197258","06/12/2017","Leisure Services","Aldersley Leisure Village","R4003"
"Wolverhampton City Council","http://opendatacommunities.org/id/metropolitan-district-council/wolverhampton","703536","Esendex Limited","14658067","12.50","Comms - Mobile Telephones","130198191","27/12/2017","Democratic Services","Electoral Registration","R4507"
"Wolverhampton City Council","http://opendatacommunities.org/id/metropolitan-district-council/wolverhampton","703560","Euro Food Brands Limited","IN00717662","279.33","Provisions (Resale)","130197412","20/12/2017","Visitor Economy","Bantock - Tea Rooms","R4102"
"Wolverhampton City Council","http://opendatacommunities.org/id/metropolitan-district-council/wolverhampton","703560","Euro Food Brands Limited","IN00717662","-279.33","Provisions (Resale)","130197412","20/12/2017","Visitor Economy","Bantock - Tea Rooms","R4102"
"Wolverhampton City Council","http://opendatacommunities.org/id/metropolitan-district-council/wolverhampton","703560","Euro Food Brands Limited","IN00717662","279.33","Provisions (Resale)","130197412","20/12/2017","Visitor Economy","Bantock - Tea Rooms","R4102"
"Wolverhampton City Council","http://opendatacommunities.org/id/metropolitan-district-council/wolverhampton","703560","Euro Food Brands Limited","IN00720210","135.28","Provisions (Resale)","130198192","27/12/2017","Visitor Economy","Bantock - Tea Rooms","R4102"
"Wolverhampton City Council","http://opendatacommunities.org/id/metropolitan-district-council/wolverhampton","703560","Euro Food Brands Limited","IN00720210","-135.28","Provisions (Resale)","130198192","27/12/2017","Visitor Economy","Bantock - Tea Rooms","R4102"
"Wolverhampton City Council","http://opendatacommunities.org/id/metropolitan-district-council/wolverhampton","703560","Euro Food Brands Limited","IN00720210","6.90","Provisions (Resale)","130198192","27/12/2017","Visitor Economy","Bantock - Tea Rooms","R4102"
"Wolverhampton City Council","http://opendatacommunities.org/id/metropolitan-district-council/wolverhampton","703560","Euro Food Brands Limited","IN00720210","128.38","Provisions (Resale)","130198192","27/12/2017","Visitor Economy","Bantock - Tea Rooms","R4102"
"Wolverhampton City Council","http://opendatacommunities.org/id/metropolitan-district-council/wolverhampton","703560","Euro Food Brands Limited","IN00715410","296.41","Provisions (Resale)","130196722","13/12/2017","Visitor Economy","Bantock - Tea Rooms","R4102"
"Wolverhampton City Council","http://opendatacommunities.org/id/metropolitan-district-council/wolverhampton","703560","Euro Food Brands Limited","IN00715410","-296.41","Provisions (Resale)","130196722","13/12/2017","Visitor Economy","Bantock - Tea Rooms","R4102"
"Wolverhampton City Council","http://opendatacommunities.org/id/metropolitan-district-council/wolverhampton","703560","Euro Food Brands Limited","IN00715410","296.41","Provisions (Resale)","130196722","13/12/2017","Visitor Economy","Bantock - Tea Rooms","R4102"
"Wolverhampton City Council","http://opendatacommunities.org/id/metropolitan-district-council/wolverhampton","703560","Euro Food Brands Limited","IN00720333","248.42","Provisions (Resale)","130198193","27/12/2017","Visitor Economy","Art Gallery Tea Room","R4102"
"Wolverhampton City Council","http://opendatacommunities.org/id/metropolitan-district-council/wolverhampton","703560","Euro Food Brands Limited","IN00720333","-248.42","Provisions (Resale)","130198193","27/12/2017","Visitor Economy","Art Gallery Tea Room","R4102"
"Wolverhampton City Council","http://opendatacommunities.org/id/metropolitan-district-council/wolverhampton","703560","Euro Food Brands Limited","IN00720333","248.42","Provisions (Resale)","130198193","27/12/2017","Visitor Economy","Art Gallery Tea Room","R4102"
"Wolverhampton City Council","http://opendatacommunities.org/id/metropolitan-district-council/wolverhampton","703560","Euro Food Brands Limited","IN00712785","194.04","Provisions (Resale)","130196383","06/12/2017","Visitor Economy","Bantock - Tea Rooms","R4102"
"Wolverhampton City Council","http://opendatacommunities.org/id/metropolitan-district-council/wolverhampton","703560","Euro Food Brands Limited","IN00712785","-194.04","Provisions (Resale)","130196383","06/12/2017","Visitor Economy","Bantock - Tea Rooms","R4102"
"Wolverhampton City Council","http://opendatacommunities.org/id/metropolitan-district-council/wolverhampton","703560","Euro Food Brands Limited","IN00712785","194.04","Provisions (Resale)","130196383","06/12/2017","Visitor Economy","Bantock - Tea Rooms","R4102"
"Wolverhampton City Council","http://opendatacommunities.org/id/metropolitan-district-council/wolverhampton","703576","Evans Halshaw Ford","235015","61.79","Services - Professional Fees","190399013","01/12/2017","Fleet Services","Fleet Management","R4400"
"Wolverhampton City Council","http://opendatacommunities.org/id/metropolitan-district-council/wolverhampton","703576","Evans Halshaw Ford","235015","38.00","Services - Professional Fees","190399013","01/12/2017","Fleet Services","Fleet Management","R4400"
"Wolverhampton City Council","http://opendatacommunities.org/id/metropolitan-district-council/wolverhampton","703576","Evans Halshaw Ford","915122","125.10","Equipment - Purchase","190399036","01/12/2017","Fleet Services","Fleet Management","R4000"
"Wolverhampton City Council","http://opendatacommunities.org/id/metropolitan-district-council/wolverhampton","703576","Evans Halshaw Ford","915613","-50.35","Equipment - Purchase","190399040","01/12/2017","Fleet Services","Fleet Management","R4000"
"Wolverhampton City Council","http://opendatacommunities.org/id/metropolitan-district-council/wolverhampton","703576","Evans Halshaw Ford","915198","31.47","Equipment - Purchase","190399037","01/12/2017","Fleet Services","Fleet Management","R4000"
"Wolverhampton City Council","http://opendatacommunities.org/id/metropolitan-district-council/wolverhampton","703576","Evans Halshaw Ford","919088","23.88","Equipment - Purchase","190405274","21/12/2017","Fleet Services","Fleet Management","R4000"
"Wolverhampton City Council","http://opendatacommunities.org/id/metropolitan-district-council/wolverhampton","703576","Evans Halshaw Ford","235534","91.08","Services - Professional Fees","190404671","20/12/2017","Fleet Services","Fleet Management","R4400"
"Wolverhampton City Council","http://opendatacommunities.org/id/metropolitan-district-council/wolverhampton","703576","Evans Halshaw Ford","235534","53.21","Services - Professional Fees","190404671","20/12/2017","Fleet Services","Fleet Management","R4400"
"Wolverhampton City Council","http://opendatacommunities.org/id/metropolitan-district-council/wolverhampton","703576","Evans Halshaw Ford","235534","3,335.00","Services - Professional Fees","190404671","20/12/2017","Fleet Services","Fleet Management","R4400"
"Wolverhampton City Council","http://opendatacommunities.org/id/metropolitan-district-council/wolverhampton","703576","Evans Halshaw Ford","235534","4.40","Services - Professional Fees","190404671","20/12/2017","Fleet Services","Fleet Management","R4400"
"Wolverhampton City Council","http://opendatacommunities.org/id/metropolitan-district-council/wolverhampton","703576","Evans Halshaw Ford","235534","129.44","Services - Professional Fees","190404671","20/12/2017","Fleet Services","Fleet Management","R4400"
"Wolverhampton City Council","http://opendatacommunities.org/id/metropolitan-district-council/wolverhampton","703576","Evans Halshaw Ford","235534","14.41","Services - Professional Fees","190404671","20/12/2017","Fleet Services","Fleet Management","R4400"
"Wolverhampton City Council","http://opendatacommunities.org/id/metropolitan-district-council/wolverhampton","703576","Evans Halshaw Ford","235534","760.00","Services - Professional Fees","190404671","20/12/2017","Fleet Services","Fleet Management","R4400"
"Wolverhampton City Council","http://opendatacommunities.org/id/metropolitan-district-council/wolverhampton","703576","Evans Halshaw Ford","234492","136.77","Services - Professional Fees","190404667","20/12/2017","Fleet Services","Fleet Management","R4400"
"Wolverhampton City Council","http://opendatacommunities.org/id/metropolitan-district-council/wolverhampton","703576","Evans Halshaw Ford","234492","157.70","Services - Professional Fees","190404667","20/12/2017","Fleet Services","Fleet Management","R4400"
"Wolverhampton City Council","http://opendatacommunities.org/id/metropolitan-district-council/wolverhampton","703576","Evans Halshaw Ford","919664","55.49","Equipment - Purchase","190406237","28/12/2017","Fleet Services","Fleet Management","R4000"
"Wolverhampton City Council","http://opendatacommunities.org/id/metropolitan-district-council/wolverhampton","703576","Evans Halshaw Ford","235620","302.99","Services - Professional Fees","190402020","13/12/2017","Fleet Services","Fleet Management","R4400"
"Wolverhampton City Council","http://opendatacommunities.org/id/metropolitan-district-council/wolverhampton","703576","Evans Halshaw Ford","235620","222.84","Services - Professional Fees","190402020","13/12/2017","Fleet Services","Fleet Management","R4400"
"Wolverhampton City Council","http://opendatacommunities.org/id/metropolitan-district-council/wolverhampton","703576","Evans Halshaw Ford","234566","142.50","Services - Professional Fees","190399010","01/12/2017","Fleet Services","Fleet Management","R4400"
"Wolverhampton City Council","http://opendatacommunities.org/id/metropolitan-district-council/wolverhampton","703576","Evans Halshaw Ford","234566","150.79","Services - Professional Fees","190399010","01/12/2017","Fleet Services","Fleet Management","R4400"
"Wolverhampton City Council","http://opendatacommunities.org/id/metropolitan-district-council/wolverhampton","703576","Evans Halshaw Ford","916648","160.34","Equipment - Purchase","190399044","01/12/2017","Fleet Services","Fleet Management","R4000"
"Wolverhampton City Council","http://opendatacommunities.org/id/metropolitan-district-council/wolverhampton","703576","Evans Halshaw Ford","919087","59.76","Equipment - Purchase","190405273","21/12/2017","Fleet Services","Fleet Management","R4000"
"Wolverhampton City Council","http://opendatacommunities.org/id/metropolitan-district-council/wolverhampton","703576","Evans Halshaw Ford","919087","30.33","Equipment - Purchase","190405273","21/12/2017","Fleet Services","Fleet Management","R4000"
"Wolverhampton City Council","http://opendatacommunities.org/id/metropolitan-district-council/wolverhampton","703576","Evans Halshaw Ford","919087","9.90","Equipment - Purchase","190405273","21/12/2017","Fleet Services","Fleet Management","R4000"
"Wolverhampton City Council","http://opendatacommunities.org/id/metropolitan-district-council/wolverhampton","703576","Evans Halshaw Ford","919087","58.82","Equipment - Purchase","190405273","21/12/2017","Fleet Services","Fleet Management","R4000"
"Wolverhampton City Council","http://opendatacommunities.org/id/metropolitan-district-council/wolverhampton","703576","Evans Halshaw Ford","918921","68.91","Equipment - Purchase","190404681","20/12/2017","Fleet Services","Fleet Management","R4000"
"Wolverhampton City Council","http://opendatacommunities.org/id/metropolitan-district-council/wolverhampton","703576","Evans Halshaw Ford","918946","13.58","Equipment - Purchase","190404682","20/12/2017","Fleet Services","Fleet Management","R4000"
"Wolverhampton City Council","http://opendatacommunities.org/id/metropolitan-district-council/wolverhampton","703576","Evans Halshaw Ford","919202","25.00","Equipment - Purchase","190404683","20/12/2017","Fleet Services","Fleet Management","R4000"
"Wolverhampton City Council","http://opendatacommunities.org/id/metropolitan-district-council/wolverhampton","703576","Evans Halshaw Ford","236497","1.62","Services - Professional Fees","190406220","28/12/2017","Fleet Services","Fleet Management","R4400"
"Wolverhampton City Council","http://opendatacommunities.org/id/metropolitan-district-council/wolverhampton","703576","Evans Halshaw Ford","236497","95.00","Services - Professional Fees","190406220","28/12/2017","Fleet Services","Fleet Management","R4400"
"Wolverhampton City Council","http://opendatacommunities.org/id/metropolitan-district-council/wolverhampton","703576","Evans Halshaw Ford","915387","80.11","Equipment - Purchase","190399039","01/12/2017","Fleet Services","Fleet Management","R4000"
"Wolverhampton City Council","http://opendatacommunities.org/id/metropolitan-district-council/wolverhampton","703576","Evans Halshaw Ford","915387","50.35","Equipment - Purchase","190399039","01/12/2017","Fleet Services","Fleet Management","R4000"
"Wolverhampton City Council","http://opendatacommunities.org/id/metropolitan-district-council/wolverhampton","703576","Evans Halshaw Ford","234769","150.79","Services - Professional Fees","190404668","20/12/2017","Fleet Services","Fleet Management","R4400"
"Wolverhampton City Council","http://opendatacommunities.org/id/metropolitan-district-council/wolverhampton","703576","Evans Halshaw Ford","234769","142.50","Services - Professional Fees","190404668","20/12/2017","Fleet Services","Fleet Management","R4400"
"Wolverhampton City Council","http://opendatacommunities.org/id/metropolitan-district-council/wolverhampton","703576","Evans Halshaw Ford","918874","109.60","Equipment - Purchase","190404680","20/12/2017","Fleet Services","Fleet Management","R4000"
"Wolverhampton City Council","http://opendatacommunities.org/id/metropolitan-district-council/wolverhampton","703576","Evans Halshaw Ford","236447","150.79","Services - Professional Fees","190406219","28/12/2017","Fleet Services","Fleet Management","R4400"
"Wolverhampton City Council","http://opendatacommunities.org/id/metropolitan-district-council/wolverhampton","703576","Evans Halshaw Ford","236447","206.78","Services - Professional Fees","190406219","28/12/2017","Fleet Services","Fleet Management","R4400"
"Wolverhampton City Council","http://opendatacommunities.org/id/metropolitan-district-council/wolverhampton","703576","Evans Halshaw Ford","915768","15.79","Equipment - Purchase","190399041","01/12/2017","Fleet Services","Fleet Management","R4000"
"Wolverhampton City Council","http://opendatacommunities.org/id/metropolitan-district-council/wolverhampton","703576","Evans Halshaw Ford","916752","28.84","Equipment - Purchase","190399045","01/12/2017","Fleet Services","Fleet Management","R4000"
"Wolverhampton City Council","http://opendatacommunities.org/id/metropolitan-district-council/wolverhampton","703576","Evans Halshaw Ford","234565","142.50","Services - Professional Fees","190399009","01/12/2017","Fleet Services","Fleet Management","R4400"
"Wolverhampton City Council","http://opendatacommunities.org/id/metropolitan-district-council/wolverhampton","703576","Evans Halshaw Ford","234565","150.79","Services - Professional Fees","190399009","01/12/2017","Fleet Services","Fleet Management","R4400"
"Wolverhampton City Council","http://opendatacommunities.org/id/metropolitan-district-council/wolverhampton","703576","Evans Halshaw Ford","917005","5.82","Equipment - Purchase","190400155","06/12/2017","Fleet Services","Fleet Management","R4000"
"Wolverhampton City Council","http://opendatacommunities.org/id/metropolitan-district-council/wolverhampton","703576","Evans Halshaw Ford","917005","25.91","Equipment - Purchase","190400155","06/12/2017","Fleet Services","Fleet Management","R4000"
"Wolverhampton City Council","http://opendatacommunities.org/id/metropolitan-district-council/wolverhampton","703576","Evans Halshaw Ford","918694","277.30","Equipment - Purchase","190405272","21/12/2017","Fleet Services","Fleet Management","R4000"
"Wolverhampton City Council","http://opendatacommunities.org/id/metropolitan-district-council/wolverhampton","703576","Evans Halshaw Ford","918481","126.93","Equipment - Purchase","190402046","13/12/2017","Fleet Services","Fleet Management","R4000"
"Wolverhampton City Council","http://opendatacommunities.org/id/metropolitan-district-council/wolverhampton","703576","Evans Halshaw Ford","915306","52.62","Equipment - Purchase","190399038","01/12/2017","Fleet Services","Fleet Management","R4000"
"Wolverhampton City Council","http://opendatacommunities.org/id/metropolitan-district-council/wolverhampton","703576","Evans Halshaw Ford","915306","2.91","Equipment - Purchase","190399038","01/12/2017","Fleet Services","Fleet Management","R4000"
"Wolverhampton City Council","http://opendatacommunities.org/id/metropolitan-district-council/wolverhampton","703576","Evans Halshaw Ford","915306","19.07","Equipment - Purchase","190399038","01/12/2017","Fleet Services","Fleet Management","R4000"
"Wolverhampton City Council","http://opendatacommunities.org/id/metropolitan-district-council/wolverhampton","703576","Evans Halshaw Ford","916321","75.39","Equipment - Purchase","190399043","01/12/2017","Fleet Services","Fleet Management","R4000"
"Wolverhampton City Council","http://opendatacommunities.org/id/metropolitan-district-council/wolverhampton","703576","Evans Halshaw Ford","915859","17.47","Equipment - Purchase","190399042","01/12/2017","Fleet Services","Fleet Management","R4000"
"Wolverhampton City Council","http://opendatacommunities.org/id/metropolitan-district-council/wolverhampton","703576","Evans Halshaw Ford","915859","13.58","Equipment - Purchase","190399042","01/12/2017","Fleet Services","Fleet Management","R4000"
"Wolverhampton City Council","http://opendatacommunities.org/id/metropolitan-district-council/wolverhampton","703576","Evans Halshaw Ford","915306","16.20","Equipment - Purchase","190399038","01/12/2017","Fleet Services","Fleet Management","R4000"
"Wolverhampton City Council","http://opendatacommunities.org/id/metropolitan-district-council/wolverhampton","703576","Evans Halshaw Ford","235512","142.50","Services - Professional Fees","190400146","06/12/2017","Fleet Services","Fleet Management","R4400"
"Wolverhampton City Council","http://opendatacommunities.org/id/metropolitan-district-council/wolverhampton","703576","Evans Halshaw Ford","235512","154.14","Services - Professional Fees","190400146","06/12/2017","Fleet Services","Fleet Management","R4400"
"Wolverhampton City Council","http://opendatacommunities.org/id/metropolitan-district-council/wolverhampton","703576","Evans Halshaw Ford","918688","17.37","Equipment - Purchase","190404679","20/12/2017","Fleet Services","Fleet Management","R4000"
"Wolverhampton City Council","http://opendatacommunities.org/id/metropolitan-district-council/wolverhampton","703576","Evans Halshaw Ford","918688","18.64","Equipment - Purchase","190404679","20/12/2017","Fleet Services","Fleet Management","R4000"
"Wolverhampton City Council","http://opendatacommunities.org/id/metropolitan-district-council/wolverhampton","703576","Evans Halshaw Ford","234139","142.50","Services - Professional Fees","190404666","20/12/2017","Fleet Services","Fleet Management","R4400"
"Wolverhampton City Council","http://opendatacommunities.org/id/metropolitan-district-council/wolverhampton","703576","Evans Halshaw Ford","234139","150.79","Services - Professional Fees","190404666","20/12/2017","Fleet Services","Fleet Management","R4400"
"Wolverhampton City Council","http://opendatacommunities.org/id/metropolitan-district-council/wolverhampton","703576","Evans Halshaw Ford","919845","24.25","Equipment - Purchase","190406238","28/12/2017","Fleet Services","Fleet Management","R4000"
"Wolverhampton City Council","http://opendatacommunities.org/id/metropolitan-district-council/wolverhampton","703576","Evans Halshaw Ford","236263","20.41","Services - Professional Fees","190406218","28/12/2017","Fleet Services","Fleet Management","R4400"
"Wolverhampton City Council","http://opendatacommunities.org/id/metropolitan-district-council/wolverhampton","703576","Evans Halshaw Ford","236263","497.72","Services - Professional Fees","190406218","28/12/2017","Fleet Services","Fleet Management","R4400"
"Wolverhampton City Council","http://opendatacommunities.org/id/metropolitan-district-council/wolverhampton","703576","Evans Halshaw Ford","236263","9.90","Services - Professional Fees","190406218","28/12/2017","Fleet Services","Fleet Management","R4400"
"Wolverhampton City Council","http://opendatacommunities.org/id/metropolitan-district-council/wolverhampton","703576","Evans Halshaw Ford","236263","142.50","Services - Professional Fees","190406218","28/12/2017","Fleet Services","Fleet Management","R4400"
"Wolverhampton City Council","http://opendatacommunities.org/id/metropolitan-district-council/wolverhampton","703576","Evans Halshaw Ford","919614","14.18","Equipment - Purchase","190405275","21/12/2017","Fleet Services","Fleet Management","R4000"
"Wolverhampton City Council","http://opendatacommunities.org/id/metropolitan-district-council/wolverhampton","703600","F & M Building Services","15/0067/DFG","6,807.75","Grants paid out","190400792","08/12/2017","-","Disabled Facilities Grants","C5000"
"Wolverhampton City Council","http://opendatacommunities.org/id/metropolitan-district-council/wolverhampton","703605","F.4.K. Limited","NEF Autumn 2017 INST 2","14,287.33","TPP - Private Nursery Education Funding","190403399","15/12/2017","Early Years","Early Years Universal Entitlement for 3 and 4 Year Olds","R5035"
"Wolverhampton City Council","http://opendatacommunities.org/id/metropolitan-district-council/wolverhampton","703605","F.4.K. Limited","EYPP Autumn 2017","222.60","TPP - Private Nursery Education Funding","190404359","20/12/2017","Early Years","Early Years Pupil Premium","R5035"
"Wolverhampton City Council","http://opendatacommunities.org/id/metropolitan-district-council/wolverhampton","703605","F.4.K. Limited","TFT Autumn 2017 Inst 2","7,262.64","Grant Payments","190404263","20/12/2017","Early Years","Early Years Entitlement Funding for Disadvantaged 2 Year Olds","R4700"
"Wolverhampton City Council","http://opendatacommunities.org/id/metropolitan-district-council/wolverhampton","703609","F.W. Bickford & Sons Limited","327192","1,870.00","Hire of Vehicles","190406309","29/12/2017","Fleet Services","Fleet Management","R3200"
"Wolverhampton City Council","http://opendatacommunities.org/id/metropolitan-district-council/wolverhampton","703617","Facultatieve Technologies Limited","17104731","412.62","R&M - Departmental planned (external)","130199649","28/12/2017","Bereavement Services","Crematorium","R2001"
"Wolverhampton City Council","http://opendatacommunities.org/id/metropolitan-district-council/wolverhampton","703627","Falon Nameplates Limited","2172079","63.60","Materials for resale","130193437","27/12/2017","Bereavement Services","Crematorium","R4008"
"Wolverhampton City Council","http://opendatacommunities.org/id/metropolitan-district-council/wolverhampton","703627","Falon Nameplates Limited","2172298","99.60","Materials for resale","130197259","27/12/2017","Bereavement Services","Crematorium","R4008"
"Wolverhampton City Council","http://opendatacommunities.org/id/metropolitan-district-council/wolverhampton","703627","Falon Nameplates Limited","2172049","45.80","Materials for resale","130192892","21/12/2017","Bereavement Services","Crematorium","R4008"
"Wolverhampton City Council","http://opendatacommunities.org/id/metropolitan-district-council/wolverhampton","703658","Feast UK Limited","08388","-244.70","Provisions (Resale)","130197766","20/12/2017","Leisure Services","Bert Williams Leisure Centre Caf�","R4102"
"Wolverhampton City Council","http://opendatacommunities.org/id/metropolitan-district-council/wolverhampton","703658","Feast UK Limited","08388","24.54","Provisions (Resale)","130197766","20/12/2017","Leisure Services","Bert Williams Leisure Centre Caf�","R4102"
"Wolverhampton City Council","http://opendatacommunities.org/id/metropolitan-district-council/wolverhampton","703658","Feast UK Limited","08388","220.16","Provisions (Resale)","130197766","20/12/2017","Leisure Services","Bert Williams Leisure Centre Caf�","R4102"
"Wolverhampton City Council","http://opendatacommunities.org/id/metropolitan-district-council/wolverhampton","703658","Feast UK Limited","08388","244.70","Provisions (Resale)","130197766","20/12/2017","Leisure Services","Bert Williams Leisure Centre Caf�","R4102"
"Wolverhampton City Council","http://opendatacommunities.org/id/metropolitan-district-council/wolverhampton","703686","Firewalker (UK) Limited","10664","377.00","TPP - Private Nursery Education Funding","130197260","13/12/2017","Child Protection","CIN/CP Social Work Unit - Area 4","R5035"
"Wolverhampton City Council","http://opendatacommunities.org/id/metropolitan-district-council/wolverhampton","703686","Firewalker (UK) Limited","EYPP Autumn 2017","779.10","TPP - Private Nursery Education Funding","190404359","20/12/2017","Early Years","Early Years Pupil Premium","R5035"
"Wolverhampton City Council","http://opendatacommunities.org/id/metropolitan-district-council/wolverhampton","703686","Firewalker (UK) Limited","NEF Autumn 2017 INST 2","12,626.67","TPP - Private Nursery Education Funding","190403399","15/12/2017","Early Years","Early Years Universal Entitlement for 3 and 4 Year Olds","R5035"
"Wolverhampton City Council","http://opendatacommunities.org/id/metropolitan-district-council/wolverhampton","703686","Firewalker (UK) Limited","TFT Autumn 2017 Inst 2","4,401.60","Grant Payments","190404263","20/12/2017","Early Years","Early Years Entitlement Funding for Disadvantaged 2 Year Olds","R4700"
"Wolverhampton City Council","http://opendatacommunities.org/id/metropolitan-district-council/wolverhampton","703686","Firewalker (UK) Limited","10709","225.00","TPP - Private Nursery Education Funding","130198716","28/12/2017","Child Protection","CIN/CP Social Work Unit - Area 4","R5035"
"Wolverhampton City Council","http://opendatacommunities.org/id/metropolitan-district-council/wolverhampton","703696","First Personnel Services PLC","00393965","356.44","Agency Staff","130199654","29/12/2017","Customer Services","City Direct","R1100"
"Wolverhampton City Council","http://opendatacommunities.org/id/metropolitan-district-council/wolverhampton","703696","First Personnel Services PLC","00393512","95.48","Agency Staff","130198550","13/12/2017","Customer Services","City Direct","R1100"
"Wolverhampton City Council","http://opendatacommunities.org/id/metropolitan-district-council/wolverhampton","703696","First Personnel Services PLC","00393740","464.65","Agency Staff","130199653","29/12/2017","Customer Services","City Direct","R1100"
"Wolverhampton City Council","http://opendatacommunities.org/id/metropolitan-district-council/wolverhampton","703696","First Personnel Services PLC","00393249","286.43","Agency Staff","130197554","06/12/2017","Customer Services","City Direct","R1100"
"Wolverhampton City Council","http://opendatacommunities.org/id/metropolitan-district-council/wolverhampton","703698","First Response (First Aid) Limited","20697","65.00","Training Expenses","130198992","27/12/2017","Human Resources","Workforce Development","R1650"
"Wolverhampton City Council","http://opendatacommunities.org/id/metropolitan-district-council/wolverhampton","703698","First Response (First Aid) Limited","20695","260.00","Training Expenses","130198882","27/12/2017","Human Resources","Workforce Development","R1650"
"Wolverhampton City Council","http://opendatacommunities.org/id/metropolitan-district-council/wolverhampton","703698","First Response (First Aid) Limited","20696","65.00","Training Expenses","130198883","13/12/2017","Human Resources","Workforce Development","R1650"
"Wolverhampton City Council","http://opendatacommunities.org/id/metropolitan-district-council/wolverhampton","703698","First Response (First Aid) Limited","20755","285.00","Training Expenses","130199655","27/12/2017","Human Resources","Centralised Training","R1650"
"Wolverhampton City Council","http://opendatacommunities.org/id/metropolitan-district-council/wolverhampton","703700","First Steps Childrens Nursery Limited","TFT Autumn 2017 Inst 2","2,986.80","Grant Payments","190404263","20/12/2017","Early Years","Early Years Entitlement Funding for Disadvantaged 2 Year Olds","R4700"
"Wolverhampton City Council","http://opendatacommunities.org/id/metropolitan-district-council/wolverhampton","703700","First Steps Childrens Nursery Limited","AE 01","46.50","TPP - Child Care provided for client","130199113","20/12/2017","Adult Education","Discretionary Fund","R5034"
"Wolverhampton City Council","http://opendatacommunities.org/id/metropolitan-district-council/wolverhampton","703700","First Steps Childrens Nursery Limited","AE 04","197.63","TPP - Child Care provided for client","130199114","15/12/2017","Adult Education","Discretionary Fund","R5034"
"Wolverhampton City Council","http://opendatacommunities.org/id/metropolitan-district-council/wolverhampton","703700","First Steps Childrens Nursery Limited","AE 03","197.63","TPP - Child Care provided for client","130199172","20/12/2017","Adult Education","Discretionary Fund","R5034"
"Wolverhampton City Council","http://opendatacommunities.org/id/metropolitan-district-council/wolverhampton","703700","First Steps Childrens Nursery Limited","AE 02","197.63","TPP - Child Care provided for client","130199171","20/12/2017","Adult Education","Discretionary Fund","R5034"
"Wolverhampton City Council","http://opendatacommunities.org/id/metropolitan-district-council/wolverhampton","703700","First Steps Childrens Nursery Limited","NEF Autumn 2017 INST 2","9,034.91","TPP - Private Nursery Education Funding","190403399","15/12/2017","Early Years","Early Years Universal Entitlement for 3 and 4 Year Olds","R5035"
"Wolverhampton City Council","http://opendatacommunities.org/id/metropolitan-district-council/wolverhampton","703712","Fleet (Line Markers)Limited","SI179799","1,120.00","Materials","130196897","13/12/2017","Environmental Maintenance","Direct Schools","R4007"
"Wolverhampton City Council","http://opendatacommunities.org/id/metropolitan-district-council/wolverhampton","703759","Forward Products:Ex John Knight Educ","131737STP004","92.50","Stationery","130199133","15/12/2017","Schools","St Paul�s Church of England (Aided) School","R4308"
"Wolverhampton City Council","http://opendatacommunities.org/id/metropolitan-district-council/wolverhampton","703759","Forward Products:Ex John Knight Educ","134165STP004","97.50","Stationery","130199134","15/12/2017","Schools","St Paul�s Church of England (Aided) School","R4308"
"Wolverhampton City Council","http://opendatacommunities.org/id/metropolitan-district-council/wolverhampton","703759","Forward Products:Ex John Knight Educ","134238STP004","20.00","Stationery","130199135","15/12/2017","Schools","St Paul�s Church of England (Aided) School","R4308"
"Wolverhampton City Council","http://opendatacommunities.org/id/metropolitan-district-council/wolverhampton","703823","Ft Leisure Limited","11505","753.48","Equipment - R & M","130197767","06/12/2017","Leisure Services","Bert Williams Leisure Centre","R4003"
"Wolverhampton City Council","http://opendatacommunities.org/id/metropolitan-district-council/wolverhampton","703868","G.C.Rickards (Investments) Limited","1170","3,325.00","Rent","130197413","27/12/2017","Highways Maintenance","Planned Highways Maintenance","R2200"
"Wolverhampton City Council","http://opendatacommunities.org/id/metropolitan-district-council/wolverhampton","703868","G.C.Rickards (Investments) Limited","1170","3,325.00","Rent","130197413","27/12/2017","Highways Maintenance","Patching","R2200"
"Wolverhampton City Council","http://opendatacommunities.org/id/metropolitan-district-council/wolverhampton","703872","G.M.Treble Limited","0000662491","405.00","R&M - Departmental planned (internal)","130199066","27/12/2017","Maintenance Programme","Civic Centre Repairs & Maintenance","R2000"
"Wolverhampton City Council","http://opendatacommunities.org/id/metropolitan-district-council/wolverhampton","703895","Gatenby Sanderson Limited","35372","2,500.00","Training Expenses","130197768","06/12/2017","Human Resources","Centralised Training","R1650"
"Wolverhampton City Council","http://opendatacommunities.org/id/metropolitan-district-council/wolverhampton","703895","Gatenby Sanderson Limited","35427","9,779.83","Training Expenses","130198194","08/12/2017","Human Resources","Centralised Training","R1650"
"Wolverhampton City Council","http://opendatacommunities.org/id/metropolitan-district-council/wolverhampton","703897","Gazebo Theatre-In-Education Co Limited","GZI13764","1,820.00","Rent","130197261","20/12/2017","Headstart","Headstart Hubs","R2200"
"Wolverhampton City Council","http://opendatacommunities.org/id/metropolitan-district-council/wolverhampton","703897","Gazebo Theatre-In-Education Co Limited","GZI13768","1,280.00","Rent","130197769","15/12/2017","Headstart","Headstart Hubs","R2200"
"Wolverhampton City Council","http://opendatacommunities.org/id/metropolitan-district-council/wolverhampton","703901","Geeky Creative","793","750.00","Services - Professional Fees","130198195","08/12/2017","Visitor Economy","Civic Halls Non-Direct Event Management Account","R4400"
"Wolverhampton City Council","http://opendatacommunities.org/id/metropolitan-district-council/wolverhampton","703910","Generation Training Services","S1966702","932.50","Training Expenses","130197555","20/12/2017","Audit Services","Health & Safety","R1650"
"Wolverhampton City Council","http://opendatacommunities.org/id/metropolitan-district-council/wolverhampton","703955","Glaze Auto Parts Limited","IN684896","2.47","Equipment - Purchase","190400162","06/12/2017","Fleet Services","Fleet Management","R4000"
"Wolverhampton City Council","http://opendatacommunities.org/id/metropolitan-district-council/wolverhampton","703955","Glaze Auto Parts Limited","IN684896","2.47","Equipment - Purchase","190400162","06/12/2017","Fleet Services","Fleet Management","R4000"
"Wolverhampton City Council","http://opendatacommunities.org/id/metropolitan-district-council/wolverhampton","703955","Glaze Auto Parts Limited","IN684896","2.47","Equipment - Purchase","190400162","06/12/2017","Fleet Services","Fleet Management","R4000"
"Wolverhampton City Council","http://opendatacommunities.org/id/metropolitan-district-council/wolverhampton","703955","Glaze Auto Parts Limited","IN684896","2.47","Equipment - Purchase","190400162","06/12/2017","Fleet Services","Fleet Management","R4000"
"Wolverhampton City Council","http://opendatacommunities.org/id/metropolitan-district-council/wolverhampton","703955","Glaze Auto Parts Limited","IN684896","2.47","Equipment - Purchase","190400162","06/12/2017","Fleet Services","Fleet Management","R4000"
"Wolverhampton City Council","http://opendatacommunities.org/id/metropolitan-district-council/wolverhampton","703955","Glaze Auto Parts Limited","IN684896","2.47","Equipment - Purchase","190400162","06/12/2017","Fleet Services","Fleet Management","R4000"
"Wolverhampton City Council","http://opendatacommunities.org/id/metropolitan-district-council/wolverhampton","703955","Glaze Auto Parts Limited","IN684629","195.00","Equipment - Purchase","190399085","01/12/2017","Fleet Services","Fleet Management","R4000"
"Wolverhampton City Council","http://opendatacommunities.org/id/metropolitan-district-council/wolverhampton","703955","Glaze Auto Parts Limited","IN684863","19.45","Equipment - Purchase","190399086","01/12/2017","Fleet Services","Fleet Management","R4000"
"Wolverhampton City Council","http://opendatacommunities.org/id/metropolitan-district-council/wolverhampton","703955","Glaze Auto Parts Limited","IN684431","38.84","Equipment - Purchase","190399079","01/12/2017","Fleet Services","Fleet Management","R4000"
"Wolverhampton City Council","http://opendatacommunities.org/id/metropolitan-district-council/wolverhampton","703955","Glaze Auto Parts Limited","IN684629","30.00","Equipment - Purchase","190399085","01/12/2017","Fleet Services","Fleet Management","R4000"
"Wolverhampton City Council","http://opendatacommunities.org/id/metropolitan-district-council/wolverhampton","703955","Glaze Auto Parts Limited","CR123952","-30.00","Equipment - Purchase","190399055","01/12/2017","Fleet Services","Fleet Management","R4000"
"Wolverhampton City Council","http://opendatacommunities.org/id/metropolitan-district-council/wolverhampton","703955","Glaze Auto Parts Limited","IN684575","7.03","Equipment - Purchase","190399084","01/12/2017","Fleet Services","Fleet Management","R4000"
"Wolverhampton City Council","http://opendatacommunities.org/id/metropolitan-district-council/wolverhampton","703955","Glaze Auto Parts Limited","IN673564","26.84","Equipment - Purchase","190406248","28/12/2017","Fleet Services","Fleet Management","R4000"
"Wolverhampton City Council","http://opendatacommunities.org/id/metropolitan-district-council/wolverhampton","703955","Glaze Auto Parts Limited","IN6886241","31.98","Equipment - Purchase","190403359","15/12/2017","Fleet Services","Fleet Management","R4000"
"Wolverhampton City Council","http://opendatacommunities.org/id/metropolitan-district-council/wolverhampton","703955","Glaze Auto Parts Limited","IN686001","12.53","Equipment - Purchase","190402065","13/12/2017","Fleet Services","Fleet Management","R4000"
"Wolverhampton City Council","http://opendatacommunities.org/id/metropolitan-district-council/wolverhampton","703955","Glaze Auto Parts Limited","IN660078","4.88","Equipment - Purchase","190402062","13/12/2017","Fleet Services","Fleet Management","R4000"
"Wolverhampton City Council","http://opendatacommunities.org/id/metropolitan-district-council/wolverhampton","703955","Glaze Auto Parts Limited","IN684482","33.45","Equipment - Purchase","190399082","01/12/2017","Fleet Services","Fleet Management","R4000"
"Wolverhampton City Council","http://opendatacommunities.org/id/metropolitan-district-council/wolverhampton","703955","Glaze Auto Parts Limited","IN684071","2.33","Equipment - Purchase","190399077","01/12/2017","Fleet Services","Fleet Management","R4000"
"Wolverhampton City Council","http://opendatacommunities.org/id/metropolitan-district-council/wolverhampton","703955","Glaze Auto Parts Limited","IN683859","23.35","Equipment - Purchase","190399073","01/12/2017","Fleet Services","Fleet Management","R4000"
"Wolverhampton City Council","http://opendatacommunities.org/id/metropolitan-district-council/wolverhampton","703955","Glaze Auto Parts Limited","IN684888","1.88","Equipment - Purchase","190400161","06/12/2017","Fleet Services","Fleet Management","R4000"
"Wolverhampton City Council","http://opendatacommunities.org/id/metropolitan-district-council/wolverhampton","703955","Glaze Auto Parts Limited","IN683772","27.73","Equipment - Purchase","190399071","01/12/2017","Fleet Services","Fleet Management","R4000"
"Wolverhampton City Council","http://opendatacommunities.org/id/metropolitan-district-council/wolverhampton","703955","Glaze Auto Parts Limited","IN684983","7.46","Equipment - Purchase","190399089","01/12/2017","Fleet Services","Fleet Management","R4000"
"Wolverhampton City Council","http://opendatacommunities.org/id/metropolitan-district-council/wolverhampton","703955","Glaze Auto Parts Limited","IN673448","18.08","Equipment - Purchase","190406247","28/12/2017","Fleet Services","Fleet Management","R4000"
"Wolverhampton City Council","http://opendatacommunities.org/id/metropolitan-district-council/wolverhampton","703955","Glaze Auto Parts Limited","IN673448","3.81","Equipment - Purchase","190406247","28/12/2017","Fleet Services","Fleet Management","R4000"
"Wolverhampton City Council","http://opendatacommunities.org/id/metropolitan-district-council/wolverhampton","703955","Glaze Auto Parts Limited","IN673448","10.33","Equipment - Purchase","190406247","28/12/2017","Fleet Services","Fleet Management","R4000"
"Wolverhampton City Council","http://opendatacommunities.org/id/metropolitan-district-council/wolverhampton","703955","Glaze Auto Parts Limited","IN673448","6.29","Equipment - Purchase","190406247","28/12/2017","Fleet Services","Fleet Management","R4000"
"Wolverhampton City Council","http://opendatacommunities.org/id/metropolitan-district-council/wolverhampton","703955","Glaze Auto Parts Limited","IN686676","48.24","Equipment - Purchase","190405279","21/12/2017","Fleet Services","Fleet Management","R4000"
"Wolverhampton City Council","http://opendatacommunities.org/id/metropolitan-district-council/wolverhampton","703955","Glaze Auto Parts Limited","IN685026","2.79","Equipment - Purchase","190400780","08/12/2017","Fleet Services","Fleet Management","R4000"
"Wolverhampton City Council","http://opendatacommunities.org/id/metropolitan-district-council/wolverhampton","703955","Glaze Auto Parts Limited","IN686060","24.95","Equipment - Purchase","190402066","13/12/2017","Fleet Services","Fleet Management","R4000"
"Wolverhampton City Council","http://opendatacommunities.org/id/metropolitan-district-council/wolverhampton","703955","Glaze Auto Parts Limited","IN686240","197.90","Equipment - Purchase","190403358","15/12/2017","Fleet Services","Fleet Management","R4000"
"Wolverhampton City Council","http://opendatacommunities.org/id/metropolitan-district-council/wolverhampton","703955","Glaze Auto Parts Limited","IN685603","8.34","Equipment - Purchase","190402063","13/12/2017","Fleet Services","Fleet Management","R4000"
"Wolverhampton City Council","http://opendatacommunities.org/id/metropolitan-district-council/wolverhampton","703955","Glaze Auto Parts Limited","IN685729","57.18","Equipment - Purchase","190400782","08/12/2017","Fleet Services","Fleet Management","R4000"
"Wolverhampton City Council","http://opendatacommunities.org/id/metropolitan-district-council/wolverhampton","703955","Glaze Auto Parts Limited","IN685729","75.38","Equipment - Purchase","190400782","08/12/2017","Fleet Services","Fleet Management","R4000"
"Wolverhampton City Council","http://opendatacommunities.org/id/metropolitan-district-council/wolverhampton","703955","Glaze Auto Parts Limited","IN685729","107.55","Equipment - Purchase","190400782","08/12/2017","Fleet Services","Fleet Management","R4000"
"Wolverhampton City Council","http://opendatacommunities.org/id/metropolitan-district-council/wolverhampton","703955","Glaze Auto Parts Limited","IN686491","2.76","Equipment - Purchase","190405278","21/12/2017","Fleet Services","Fleet Management","R4000"
"Wolverhampton City Council","http://opendatacommunities.org/id/metropolitan-district-council/wolverhampton","703955","Glaze Auto Parts Limited","IN686491","3.99","Equipment - Purchase","190405278","21/12/2017","Fleet Services","Fleet Management","R4000"
"Wolverhampton City Council","http://opendatacommunities.org/id/metropolitan-district-council/wolverhampton","703955","Glaze Auto Parts Limited","IN683950","162.63","Equipment - Purchase","190399074","01/12/2017","Fleet Services","Fleet Management","R4000"
"Wolverhampton City Council","http://opendatacommunities.org/id/metropolitan-district-council/wolverhampton","703955","Glaze Auto Parts Limited","IN684002","8.95","Equipment - Purchase","190399076","01/12/2017","Fleet Services","Fleet Management","R4000"
"Wolverhampton City Council","http://opendatacommunities.org/id/metropolitan-district-council/wolverhampton","703955","Glaze Auto Parts Limited","IN683771","27.73","Equipment - Purchase","190399070","01/12/2017","Fleet Services","Fleet Management","R4000"
"Wolverhampton City Council","http://opendatacommunities.org/id/metropolitan-district-council/wolverhampton","703955","Glaze Auto Parts Limited","IN684934","22.80","Equipment - Purchase","190399088","01/12/2017","Fleet Services","Fleet Management","R4000"
"Wolverhampton City Council","http://opendatacommunities.org/id/metropolitan-district-council/wolverhampton","703955","Glaze Auto Parts Limited","IN684923","9.74","Equipment - Purchase","190399087","01/12/2017","Fleet Services","Fleet Management","R4000"
"Wolverhampton City Council","http://opendatacommunities.org/id/metropolitan-district-council/wolverhampton","703955","Glaze Auto Parts Limited","IN684923","14.72","Equipment - Purchase","190399087","01/12/2017","Fleet Services","Fleet Management","R4000"
"Wolverhampton City Council","http://opendatacommunities.org/id/metropolitan-district-council/wolverhampton","703955","Glaze Auto Parts Limited","IN684923","24.12","Equipment - Purchase","190399087","01/12/2017","Fleet Services","Fleet Management","R4000"
"Wolverhampton City Council","http://opendatacommunities.org/id/metropolitan-district-council/wolverhampton","703955","Glaze Auto Parts Limited","IN684923","3.73","Equipment - Purchase","190399087","01/12/2017","Fleet Services","Fleet Management","R4000"
"Wolverhampton City Council","http://opendatacommunities.org/id/metropolitan-district-council/wolverhampton","703955","Glaze Auto Parts Limited","IN685147","2.63","Equipment - Purchase","190400163","06/12/2017","Fleet Services","Fleet Management","R4000"
"Wolverhampton City Council","http://opendatacommunities.org/id/metropolitan-district-council/wolverhampton","703955","Glaze Auto Parts Limited","CR122642","-10.33","Equipment - Purchase","190406240","28/12/2017","Fleet Services","Fleet Management","R4000"
"Wolverhampton City Council","http://opendatacommunities.org/id/metropolitan-district-council/wolverhampton","703955","Glaze Auto Parts Limited","IN687134","14.91","Equipment - Purchase","190406250","28/12/2017","Fleet Services","Fleet Management","R4000"
"Wolverhampton City Council","http://opendatacommunities.org/id/metropolitan-district-council/wolverhampton","703955","Glaze Auto Parts Limited","IN686229","22.80","Equipment - Purchase","190403357","15/12/2017","Fleet Services","Fleet Management","R4000"
"Wolverhampton City Council","http://opendatacommunities.org/id/metropolitan-district-council/wolverhampton","703955","Glaze Auto Parts Limited","IN685936","5.37","Equipment - Purchase","190402064","13/12/2017","Fleet Services","Fleet Management","R4000"
"Wolverhampton City Council","http://opendatacommunities.org/id/metropolitan-district-council/wolverhampton","703955","Glaze Auto Parts Limited","IN685104","22.85","Equipment - Purchase","190400781","08/12/2017","Fleet Services","Fleet Management","R4000"
"Wolverhampton City Council","http://opendatacommunities.org/id/metropolitan-district-council/wolverhampton","703955","Glaze Auto Parts Limited","IN686714","37.86","Equipment - Purchase","190404699","20/12/2017","Fleet Services","Fleet Management","R4000"
"Wolverhampton City Council","http://opendatacommunities.org/id/metropolitan-district-council/wolverhampton","703955","Glaze Auto Parts Limited","IN684458","49.05","Equipment - Purchase","190399081","01/12/2017","Fleet Services","Fleet Management","R4000"
"Wolverhampton City Council","http://opendatacommunities.org/id/metropolitan-district-council/wolverhampton","703955","Glaze Auto Parts Limited","IN683952","2.33","Equipment - Purchase","190399075","01/12/2017","Fleet Services","Fleet Management","R4000"
"Wolverhampton City Council","http://opendatacommunities.org/id/metropolitan-district-council/wolverhampton","703955","Glaze Auto Parts Limited","IN683952","2.33","Equipment - Purchase","190399075","01/12/2017","Fleet Services","Fleet Management","R4000"
"Wolverhampton City Council","http://opendatacommunities.org/id/metropolitan-district-council/wolverhampton","703955","Glaze Auto Parts Limited","IN683952","2.33","Equipment - Purchase","190399075","01/12/2017","Fleet Services","Fleet Management","R4000"
"Wolverhampton City Council","http://opendatacommunities.org/id/metropolitan-district-council/wolverhampton","703955","Glaze Auto Parts Limited","IN684361","1.17","Equipment - Purchase","190399078","01/12/2017","Fleet Services","Fleet Management","R4000"
"Wolverhampton City Council","http://opendatacommunities.org/id/metropolitan-district-council/wolverhampton","703955","Glaze Auto Parts Limited","IN684361","3.28","Equipment - Purchase","190399078","01/12/2017","Fleet Services","Fleet Management","R4000"
"Wolverhampton City Council","http://opendatacommunities.org/id/metropolitan-district-council/wolverhampton","703955","Glaze Auto Parts Limited","IN683952","2.33","Equipment - Purchase","190399075","01/12/2017","Fleet Services","Fleet Management","R4000"
"Wolverhampton City Council","http://opendatacommunities.org/id/metropolitan-district-council/wolverhampton","703955","Glaze Auto Parts Limited","IN683952","2.33","Equipment - Purchase","190399075","01/12/2017","Fleet Services","Fleet Management","R4000"
"Wolverhampton City Council","http://opendatacommunities.org/id/metropolitan-district-council/wolverhampton","703955","Glaze Auto Parts Limited","IN683952","2.33","Equipment - Purchase","190399075","01/12/2017","Fleet Services","Fleet Management","R4000"
"Wolverhampton City Council","http://opendatacommunities.org/id/metropolitan-district-council/wolverhampton","703955","Glaze Auto Parts Limited","IN684534","41.22","Equipment - Purchase","190399083","01/12/2017","Fleet Services","Fleet Management","R4000"
"Wolverhampton City Council","http://opendatacommunities.org/id/metropolitan-district-council/wolverhampton","703955","Glaze Auto Parts Limited","IN684436","83.31","Equipment - Purchase","190399080","01/12/2017","Fleet Services","Fleet Management","R4000"
"Wolverhampton City Council","http://opendatacommunities.org/id/metropolitan-district-council/wolverhampton","703955","Glaze Auto Parts Limited","IN683798","54.87","Equipment - Purchase","190399072","01/12/2017","Fleet Services","Fleet Management","R4000"
"Wolverhampton City Council","http://opendatacommunities.org/id/metropolitan-district-council/wolverhampton","703955","Glaze Auto Parts Limited","IN685253","197.90","Equipment - Purchase","190400164","06/12/2017","Fleet Services","Fleet Management","R4000"
"Wolverhampton City Council","http://opendatacommunities.org/id/metropolitan-district-council/wolverhampton","703955","Glaze Auto Parts Limited","IN685259","15.50","Equipment - Purchase","190400165","06/12/2017","Fleet Services","Fleet Management","R4000"
"Wolverhampton City Council","http://opendatacommunities.org/id/metropolitan-district-council/wolverhampton","703955","Glaze Auto Parts Limited","IN686329","22.40","Equipment - Purchase","190406249","28/12/2017","Fleet Services","Fleet Management","R4000"
"Wolverhampton City Council","http://opendatacommunities.org/id/metropolitan-district-council/wolverhampton","703970","GLS Educational Supplies Limited","94796038","23.98","Equipment - Purchase","130199138","15/12/2017","Schools","St Paul�s Church of England (Aided) School","R4000"
"Wolverhampton City Council","http://opendatacommunities.org/id/metropolitan-district-council/wolverhampton","704039","Greenacres Leonard Cheshire Disab�Ty","P160711 07011820171218","4,179.36","TPP - Nursing Care - Long Term","190404195","20/12/2017","Physical Disabilities Care Purchasing","PD Care Purchasing (Spot Placements)","R5410"
"Wolverhampton City Council","http://opendatacommunities.org/id/metropolitan-district-council/wolverhampton","704044","Greenhous Commercials Limited","13047051","40.00","Equipment - Purchase","190404641","20/12/2017","Fleet Services","Fleet Management","R4000"
"Wolverhampton City Council","http://opendatacommunities.org/id/metropolitan-district-council/wolverhampton","704044","Greenhous Commercials Limited","13047051","74.70","Equipment - Purchase","190404641","20/12/2017","Fleet Services","Fleet Management","R4000"
"Wolverhampton City Council","http://opendatacommunities.org/id/metropolitan-district-council/wolverhampton","704044","Greenhous Commercials Limited","13047051","4.10","Equipment - Purchase","190404641","20/12/2017","Fleet Services","Fleet Management","R4000"
"Wolverhampton City Council","http://opendatacommunities.org/id/metropolitan-district-council/wolverhampton","704044","Greenhous Commercials Limited","13047051","3.50","Equipment - Purchase","190404641","20/12/2017","Fleet Services","Fleet Management","R4000"
"Wolverhampton City Council","http://opendatacommunities.org/id/metropolitan-district-council/wolverhampton","704044","Greenhous Commercials Limited","13047051","1.82","Equipment - Purchase","190404641","20/12/2017","Fleet Services","Fleet Management","R4000"
"Wolverhampton City Council","http://opendatacommunities.org/id/metropolitan-district-council/wolverhampton","704044","Greenhous Commercials Limited","13047051","2.09","Equipment - Purchase","190404641","20/12/2017","Fleet Services","Fleet Management","R4000"
"Wolverhampton City Council","http://opendatacommunities.org/id/metropolitan-district-council/wolverhampton","704044","Greenhous Commercials Limited","13047051","3.90","Equipment - Purchase","190404641","20/12/2017","Fleet Services","Fleet Management","R4000"
"Wolverhampton City Council","http://opendatacommunities.org/id/metropolitan-district-council/wolverhampton","704044","Greenhous Commercials Limited","13047051","2.10","Equipment - Purchase","190404641","20/12/2017","Fleet Services","Fleet Management","R4000"
"Wolverhampton City Council","http://opendatacommunities.org/id/metropolitan-district-council/wolverhampton","704044","Greenhous Commercials Limited","13047310","128.00","Equipment - Purchase","190404642","20/12/2017","Fleet Services","Fleet Management","R4000"
"Wolverhampton City Council","http://opendatacommunities.org/id/metropolitan-district-council/wolverhampton","704044","Greenhous Commercials Limited","13698952","17.58","Services - Professional Fees","190405265","21/12/2017","Fleet Services","Fleet Management","R4400"
"Wolverhampton City Council","http://opendatacommunities.org/id/metropolitan-district-council/wolverhampton","704044","Greenhous Commercials Limited","13047747","4.74","Equipment - Purchase","190405261","21/12/2017","Fleet Services","Fleet Management","R4000"
"Wolverhampton City Council","http://opendatacommunities.org/id/metropolitan-district-council/wolverhampton","704044","Greenhous Commercials Limited","13047747","51.15","Equipment - Purchase","190405261","21/12/2017","Fleet Services","Fleet Management","R4000"
"Wolverhampton City Council","http://opendatacommunities.org/id/metropolitan-district-council/wolverhampton","704044","Greenhous Commercials Limited","13047747","36.61","Equipment - Purchase","190405261","21/12/2017","Fleet Services","Fleet Management","R4000"
"Wolverhampton City Council","http://opendatacommunities.org/id/metropolitan-district-council/wolverhampton","704044","Greenhous Commercials Limited","13043621","5.03","Equipment - Purchase","190400134","06/12/2017","Fleet Services","Fleet Management","R4000"
"Wolverhampton City Council","http://opendatacommunities.org/id/metropolitan-district-council/wolverhampton","704044","Greenhous Commercials Limited","13043621","96.99","Equipment - Purchase","190400134","06/12/2017","Fleet Services","Fleet Management","R4000"
"Wolverhampton City Council","http://opendatacommunities.org/id/metropolitan-district-council/wolverhampton","704044","Greenhous Commercials Limited","13043621","0.30","Equipment - Purchase","190400134","06/12/2017","Fleet Services","Fleet Management","R4000"
"Wolverhampton City Council","http://opendatacommunities.org/id/metropolitan-district-council/wolverhampton","704044","Greenhous Commercials Limited","13043621","0.24","Equipment - Purchase","190400134","06/12/2017","Fleet Services","Fleet Management","R4000"
"Wolverhampton City Council","http://opendatacommunities.org/id/metropolitan-district-council/wolverhampton","704044","Greenhous Commercials Limited","13043621","168.97","Equipment - Purchase","190400134","06/12/2017","Fleet Services","Fleet Management","R4000"
"Wolverhampton City Council","http://opendatacommunities.org/id/metropolitan-district-council/wolverhampton","704044","Greenhous Commercials Limited","1304581","-280.00","Equipment - Purchase","190400137","06/12/2017","Fleet Services","Fleet Management","R4000"
"Wolverhampton City Council","http://opendatacommunities.org/id/metropolitan-district-council/wolverhampton","704044","Greenhous Commercials Limited","13697097","17.58","Services - Professional Fees","190399004","01/12/2017","Fleet Services","Fleet Management","R4400"
"Wolverhampton City Council","http://opendatacommunities.org/id/metropolitan-district-council/wolverhampton","704044","Greenhous Commercials Limited","13697097","57.75","Services - Professional Fees","190399004","01/12/2017","Fleet Services","Fleet Management","R4400"
"Wolverhampton City Council","http://opendatacommunities.org/id/metropolitan-district-council/wolverhampton","704044","Greenhous Commercials Limited","13697730","65.00","Services - Professional Fees","190399008","01/12/2017","Fleet Services","Fleet Management","R4400"
"Wolverhampton City Council","http://opendatacommunities.org/id/metropolitan-district-council/wolverhampton","704044","Greenhous Commercials Limited","13697271","14.00","Services - Professional Fees","190399006","01/12/2017","Fleet Services","Fleet Management","R4400"
"Wolverhampton City Council","http://opendatacommunities.org/id/metropolitan-district-council/wolverhampton","704044","Greenhous Commercials Limited","13697271","15.00","Services - Professional Fees","190399006","01/12/2017","Fleet Services","Fleet Management","R4400"
"Wolverhampton City Council","http://opendatacommunities.org/id/metropolitan-district-council/wolverhampton","704044","Greenhous Commercials Limited","13697271","65.00","Services - Professional Fees","190399006","01/12/2017","Fleet Services","Fleet Management","R4400"
"Wolverhampton City Council","http://opendatacommunities.org/id/metropolitan-district-council/wolverhampton","704044","Greenhous Commercials Limited","13697271","54.00","Services - Professional Fees","190399006","01/12/2017","Fleet Services","Fleet Management","R4400"
"Wolverhampton City Council","http://opendatacommunities.org/id/metropolitan-district-council/wolverhampton","704044","Greenhous Commercials Limited","13697730","15.00","Services - Professional Fees","190399008","01/12/2017","Fleet Services","Fleet Management","R4400"
"Wolverhampton City Council","http://opendatacommunities.org/id/metropolitan-district-council/wolverhampton","704044","Greenhous Commercials Limited","13697097","38.04","Services - Professional Fees","190399004","01/12/2017","Fleet Services","Fleet Management","R4400"
"Wolverhampton City Council","http://opendatacommunities.org/id/metropolitan-district-council/wolverhampton","704044","Greenhous Commercials Limited","13697097","57.75","Services - Professional Fees","190399004","01/12/2017","Fleet Services","Fleet Management","R4400"
"Wolverhampton City Council","http://opendatacommunities.org/id/metropolitan-district-council/wolverhampton","704044","Greenhous Commercials Limited","13697097","5.78","Services - Professional Fees","190399004","01/12/2017","Fleet Services","Fleet Management","R4400"
"Wolverhampton City Council","http://opendatacommunities.org/id/metropolitan-district-council/wolverhampton","704044","Greenhous Commercials Limited","13697097","28.88","Services - Professional Fees","190399004","01/12/2017","Fleet Services","Fleet Management","R4400"
"Wolverhampton City Council","http://opendatacommunities.org/id/metropolitan-district-council/wolverhampton","704044","Greenhous Commercials Limited","13697097","5.78","Services - Professional Fees","190399004","01/12/2017","Fleet Services","Fleet Management","R4400"
"Wolverhampton City Council","http://opendatacommunities.org/id/metropolitan-district-council/wolverhampton","704044","Greenhous Commercials Limited","13697097","0.99","Services - Professional Fees","190399004","01/12/2017","Fleet Services","Fleet Management","R4400"
"Wolverhampton City Council","http://opendatacommunities.org/id/metropolitan-district-council/wolverhampton","704044","Greenhous Commercials Limited","13697097","28.88","Services - Professional Fees","190399004","01/12/2017","Fleet Services","Fleet Management","R4400"
"Wolverhampton City Council","http://opendatacommunities.org/id/metropolitan-district-council/wolverhampton","704044","Greenhous Commercials Limited","13697097","7.85","Services - Professional Fees","190399004","01/12/2017","Fleet Services","Fleet Management","R4400"
"Wolverhampton City Council","http://opendatacommunities.org/id/metropolitan-district-council/wolverhampton","704044","Greenhous Commercials Limited","13697097","5.78","Services - Professional Fees","190399004","01/12/2017","Fleet Services","Fleet Management","R4400"
"Wolverhampton City Council","http://opendatacommunities.org/id/metropolitan-district-council/wolverhampton","704044","Greenhous Commercials Limited","13041311","21.17","Equipment - Purchase","190398996","01/12/2017","Fleet Services","Fleet Management","R4000"
"Wolverhampton City Council","http://opendatacommunities.org/id/metropolitan-district-council/wolverhampton","704044","Greenhous Commercials Limited","13041311","6.57","Equipment - Purchase","190398996","01/12/2017","Fleet Services","Fleet Management","R4000"
"Wolverhampton City Council","http://opendatacommunities.org/id/metropolitan-district-council/wolverhampton","704044","Greenhous Commercials Limited","13041311","31.58","Equipment - Purchase","190398996","01/12/2017","Fleet Services","Fleet Management","R4000"
"Wolverhampton City Council","http://opendatacommunities.org/id/metropolitan-district-council/wolverhampton","704044","Greenhous Commercials Limited","13697097","45.84","Services - Professional Fees","190399004","01/12/2017","Fleet Services","Fleet Management","R4400"
"Wolverhampton City Council","http://opendatacommunities.org/id/metropolitan-district-council/wolverhampton","704044","Greenhous Commercials Limited","13697097","50.00","Services - Professional Fees","190399004","01/12/2017","Fleet Services","Fleet Management","R4400"
"Wolverhampton City Council","http://opendatacommunities.org/id/metropolitan-district-council/wolverhampton","704044","Greenhous Commercials Limited","13697097","144.38","Services - Professional Fees","190399004","01/12/2017","Fleet Services","Fleet Management","R4400"
"Wolverhampton City Council","http://opendatacommunities.org/id/metropolitan-district-council/wolverhampton","704044","Greenhous Commercials Limited","13697097","28.88","Services - Professional Fees","190399004","01/12/2017","Fleet Services","Fleet Management","R4400"
"Wolverhampton City Council","http://opendatacommunities.org/id/metropolitan-district-council/wolverhampton","704044","Greenhous Commercials Limited","13697097","85.82","Services - Professional Fees","190399004","01/12/2017","Fleet Services","Fleet Management","R4400"
"Wolverhampton City Council","http://opendatacommunities.org/id/metropolitan-district-council/wolverhampton","704044","Greenhous Commercials Limited","13697097","57.75","Services - Professional Fees","190399004","01/12/2017","Fleet Services","Fleet Management","R4400"
"Wolverhampton City Council","http://opendatacommunities.org/id/metropolitan-district-council/wolverhampton","704044","Greenhous Commercials Limited","13698980","50.00","Services - Professional Fees","190406216","28/12/2017","Fleet Services","Fleet Management","R4400"
"Wolverhampton City Council","http://opendatacommunities.org/id/metropolitan-district-council/wolverhampton","704044","Greenhous Commercials Limited","13698980","144.38","Services - Professional Fees","190406216","28/12/2017","Fleet Services","Fleet Management","R4400"
"Wolverhampton City Council","http://opendatacommunities.org/id/metropolitan-district-council/wolverhampton","704044","Greenhous Commercials Limited","13698980","132.41","Services - Professional Fees","190406216","28/12/2017","Fleet Services","Fleet Management","R4400"
"Wolverhampton City Council","http://opendatacommunities.org/id/metropolitan-district-council/wolverhampton","704044","Greenhous Commercials Limited","13698980","57.75","Services - Professional Fees","190406216","28/12/2017","Fleet Services","Fleet Management","R4400"
"Wolverhampton City Council","http://opendatacommunities.org/id/metropolitan-district-council/wolverhampton","704044","Greenhous Commercials Limited","13698980","144.38","Services - Professional Fees","190406216","28/12/2017","Fleet Services","Fleet Management","R4400"
"Wolverhampton City Council","http://opendatacommunities.org/id/metropolitan-district-council/wolverhampton","704044","Greenhous Commercials Limited","13698980","1.32","Services - Professional Fees","190406216","28/12/2017","Fleet Services","Fleet Management","R4400"
"Wolverhampton City Council","http://opendatacommunities.org/id/metropolitan-district-council/wolverhampton","704044","Greenhous Commercials Limited","13698980","8.87","Services - Professional Fees","190406216","28/12/2017","Fleet Services","Fleet Management","R4400"
"Wolverhampton City Council","http://opendatacommunities.org/id/metropolitan-district-council/wolverhampton","704044","Greenhous Commercials Limited","13698980","57.75","Services - Professional Fees","190406216","28/12/2017","Fleet Services","Fleet Management","R4400"
"Wolverhampton City Council","http://opendatacommunities.org/id/metropolitan-district-council/wolverhampton","704044","Greenhous Commercials Limited","13698980","31.68","Services - Professional Fees","190406216","28/12/2017","Fleet Services","Fleet Management","R4400"
"Wolverhampton City Council","http://opendatacommunities.org/id/metropolitan-district-council/wolverhampton","704044","Greenhous Commercials Limited","13698980","17.33","Services - Professional Fees","190406216","28/12/2017","Fleet Services","Fleet Management","R4400"
"Wolverhampton City Council","http://opendatacommunities.org/id/metropolitan-district-council/wolverhampton","704044","Greenhous Commercials Limited","13698980","6.06","Services - Professional Fees","190406216","28/12/2017","Fleet Services","Fleet Management","R4400"
"Wolverhampton City Council","http://opendatacommunities.org/id/metropolitan-district-council/wolverhampton","704044","Greenhous Commercials Limited","13698980","5.78","Services - Professional Fees","190406216","28/12/2017","Fleet Services","Fleet Management","R4400"
"Wolverhampton City Council","http://opendatacommunities.org/id/metropolitan-district-council/wolverhampton","704044","Greenhous Commercials Limited","13698980","6.75","Services - Professional Fees","190406216","28/12/2017","Fleet Services","Fleet Management","R4400"
"Wolverhampton City Council","http://opendatacommunities.org/id/metropolitan-district-council/wolverhampton","704044","Greenhous Commercials Limited","13698980","28.88","Services - Professional Fees","190406216","28/12/2017","Fleet Services","Fleet Management","R4400"
"Wolverhampton City Council","http://opendatacommunities.org/id/metropolitan-district-council/wolverhampton","704044","Greenhous Commercials Limited","13698980","84.39","Services - Professional Fees","190406216","28/12/2017","Fleet Services","Fleet Management","R4400"
"Wolverhampton City Council","http://opendatacommunities.org/id/metropolitan-district-council/wolverhampton","704044","Greenhous Commercials Limited","13695872","113.00","MOT & HGV Tests","190403322","15/12/2017","Fleet Services","Fleet Management","R3005"
"Wolverhampton City Council","http://opendatacommunities.org/id/metropolitan-district-council/wolverhampton","704044","Greenhous Commercials Limited","13695872","35.00","MOT & HGV Tests","190403322","15/12/2017","Fleet Services","Fleet Management","R3005"
"Wolverhampton City Council","http://opendatacommunities.org/id/metropolitan-district-council/wolverhampton","704044","Greenhous Commercials Limited","13047194","180.00","Equipment - Purchase","190403315","15/12/2017","Fleet Services","Fleet Management","R4000"
"Wolverhampton City Council","http://opendatacommunities.org/id/metropolitan-district-council/wolverhampton","704044","Greenhous Commercials Limited","13695886","91.00","MOT & HGV Tests","190403323","15/12/2017","Fleet Services","Fleet Management","R3005"
"Wolverhampton City Council","http://opendatacommunities.org/id/metropolitan-district-council/wolverhampton","704044","Greenhous Commercials Limited","13695886","35.00","MOT & HGV Tests","190403323","15/12/2017","Fleet Services","Fleet Management","R3005"
"Wolverhampton City Council","http://opendatacommunities.org/id/metropolitan-district-council/wolverhampton","704044","Greenhous Commercials Limited","13689721","91.00","MOT & HGV Tests","190403316","15/12/2017","Fleet Services","Fleet Management","R3005"
"Wolverhampton City Council","http://opendatacommunities.org/id/metropolitan-district-council/wolverhampton","704044","Greenhous Commercials Limited","13689721","35.00","MOT & HGV Tests","190403316","15/12/2017","Fleet Services","Fleet Management","R3005"
"Wolverhampton City Council","http://opendatacommunities.org/id/metropolitan-district-council/wolverhampton","704044","Greenhous Commercials Limited","13697950","57.75","Services - Professional Fees","190402012","13/12/2017","Fleet Services","Fleet Management","R4400"
"Wolverhampton City Council","http://opendatacommunities.org/id/metropolitan-district-council/wolverhampton","704044","Greenhous Commercials Limited","13697950","909.22","Services - Professional Fees","190402012","13/12/2017","Fleet Services","Fleet Management","R4400"
"Wolverhampton City Council","http://opendatacommunities.org/id/metropolitan-district-council/wolverhampton","704044","Greenhous Commercials Limited","13046827","129.50","Equipment - Purchase","190402010","13/12/2017","Fleet Services","Fleet Management","R4000"
"Wolverhampton City Council","http://opendatacommunities.org/id/metropolitan-district-council/wolverhampton","704044","Greenhous Commercials Limited","13045315","28.56","Equipment - Purchase","190402008","13/12/2017","Fleet Services","Fleet Management","R4000"
"Wolverhampton City Council","http://opendatacommunities.org/id/metropolitan-district-council/wolverhampton","704044","Greenhous Commercials Limited","13697950","173.25","Services - Professional Fees","190402012","13/12/2017","Fleet Services","Fleet Management","R4400"
"Wolverhampton City Council","http://opendatacommunities.org/id/metropolitan-district-council/wolverhampton","704044","Greenhous Commercials Limited","13697950","7.80","Services - Professional Fees","190402012","13/12/2017","Fleet Services","Fleet Management","R4400"
"Wolverhampton City Council","http://opendatacommunities.org/id/metropolitan-district-council/wolverhampton","704044","Greenhous Commercials Limited","13698276","50.00","Services - Professional Fees","190400752","08/12/2017","Fleet Services","Fleet Management","R4400"
"Wolverhampton City Council","http://opendatacommunities.org/id/metropolitan-district-council/wolverhampton","704044","Greenhous Commercials Limited","13695848","91.00","MOT & HGV Tests","190403317","15/12/2017","Fleet Services","Fleet Management","R3005"
"Wolverhampton City Council","http://opendatacommunities.org/id/metropolitan-district-council/wolverhampton","704044","Greenhous Commercials Limited","13695848","35.00","MOT & HGV Tests","190403317","15/12/2017","Fleet Services","Fleet Management","R3005"
"Wolverhampton City Council","http://opendatacommunities.org/id/metropolitan-district-council/wolverhampton","704044","Greenhous Commercials Limited","13047122","16.92","Equipment - Purchase","190403314","15/12/2017","Fleet Services","Fleet Management","R4000"
"Wolverhampton City Council","http://opendatacommunities.org/id/metropolitan-district-council/wolverhampton","704044","Greenhous Commercials Limited","13698141","35.00","MOT & HGV Tests","190403325","15/12/2017","Fleet Services","Fleet Management","R3005"
"Wolverhampton City Council","http://opendatacommunities.org/id/metropolitan-district-council/wolverhampton","704044","Greenhous Commercials Limited","13696290","113.00","MOT & HGV Tests","190403324","15/12/2017","Fleet Services","Fleet Management","R3005"
"Wolverhampton City Council","http://opendatacommunities.org/id/metropolitan-district-council/wolverhampton","704044","Greenhous Commercials Limited","13696290","35.00","MOT & HGV Tests","190403324","15/12/2017","Fleet Services","Fleet Management","R3005"
"Wolverhampton City Council","http://opendatacommunities.org/id/metropolitan-district-council/wolverhampton","704044","Greenhous Commercials Limited","13698141","91.00","MOT & HGV Tests","190403325","15/12/2017","Fleet Services","Fleet Management","R3005"
"Wolverhampton City Council","http://opendatacommunities.org/id/metropolitan-district-council/wolverhampton","704044","Greenhous Commercials Limited","13698073","346.50","Services - Professional Fees","190402013","13/12/2017","Fleet Services","Fleet Management","R4400"
"Wolverhampton City Council","http://opendatacommunities.org/id/metropolitan-district-council/wolverhampton","704044","Greenhous Commercials Limited","13698073","347.47","Services - Professional Fees","190402013","13/12/2017","Fleet Services","Fleet Management","R4400"
"Wolverhampton City Council","http://opendatacommunities.org/id/metropolitan-district-council/wolverhampton","704044","Greenhous Commercials Limited","13698531","15.00","Services - Professional Fees","190402015","13/12/2017","Fleet Services","Fleet Management","R4400"
"Wolverhampton City Council","http://opendatacommunities.org/id/metropolitan-district-council/wolverhampton","704044","Greenhous Commercials Limited","13698531","65.00","Services - Professional Fees","190402015","13/12/2017","Fleet Services","Fleet Management","R4400"
"Wolverhampton City Council","http://opendatacommunities.org/id/metropolitan-district-council/wolverhampton","704044","Greenhous Commercials Limited","13041577","20.50","Equipment - Purchase","190402006","13/12/2017","Fleet Services","Fleet Management","R4000"
"Wolverhampton City Council","http://opendatacommunities.org/id/metropolitan-district-council/wolverhampton","704044","Greenhous Commercials Limited","13698319","45.00","Services - Professional Fees","190400753","08/12/2017","Fleet Services","Fleet Management","R4400"
"Wolverhampton City Council","http://opendatacommunities.org/id/metropolitan-district-council/wolverhampton","704044","Greenhous Commercials Limited","13698319","15.00","Services - Professional Fees","190400753","08/12/2017","Fleet Services","Fleet Management","R4400"
"Wolverhampton City Council","http://opendatacommunities.org/id/metropolitan-district-council/wolverhampton","704044","Greenhous Commercials Limited","13048154","11.18","Equipment - Purchase","190405262","21/12/2017","Fleet Services","Fleet Management","R4000"
"Wolverhampton City Council","http://opendatacommunities.org/id/metropolitan-district-council/wolverhampton","704044","Greenhous Commercials Limited","13046815","37.20","Equipment - Purchase","190404640","20/12/2017","Fleet Services","Fleet Management","R4000"
"Wolverhampton City Council","http://opendatacommunities.org/id/metropolitan-district-council/wolverhampton","704044","Greenhous Commercials Limited","13046815","105.95","Equipment - Purchase","190404640","20/12/2017","Fleet Services","Fleet Management","R4000"
"Wolverhampton City Council","http://opendatacommunities.org/id/metropolitan-district-council/wolverhampton","704044","Greenhous Commercials Limited","13046815","670.00","Equipment - Purchase","190404640","20/12/2017","Fleet Services","Fleet Management","R4000"
"Wolverhampton City Council","http://opendatacommunities.org/id/metropolitan-district-council/wolverhampton","704044","Greenhous Commercials Limited","13047812","8.50","Equipment - Purchase","190404644","20/12/2017","Fleet Services","Fleet Management","R4000"
"Wolverhampton City Council","http://opendatacommunities.org/id/metropolitan-district-council/wolverhampton","704044","Greenhous Commercials Limited","13048177","274.19","Equipment - Purchase","190404647","20/12/2017","Fleet Services","Fleet Management","R4000"
"Wolverhampton City Council","http://opendatacommunities.org/id/metropolitan-district-council/wolverhampton","704044","Greenhous Commercials Limited","13046815","36.61","Equipment - Purchase","190404640","20/12/2017","Fleet Services","Fleet Management","R4000"
"Wolverhampton City Council","http://opendatacommunities.org/id/metropolitan-district-council/wolverhampton","704044","Greenhous Commercials Limited","13041405","13.50","Equipment - Purchase","190398997","01/12/2017","Fleet Services","Fleet Management","R4000"
"Wolverhampton City Council","http://opendatacommunities.org/id/metropolitan-district-council/wolverhampton","704044","Greenhous Commercials Limited","13041405","41.25","Equipment - Purchase","190398997","01/12/2017","Fleet Services","Fleet Management","R4000"
"Wolverhampton City Council","http://opendatacommunities.org/id/metropolitan-district-council/wolverhampton","704044","Greenhous Commercials Limited","13041405","17.90","Equipment - Purchase","190398997","01/12/2017","Fleet Services","Fleet Management","R4000"
"Wolverhampton City Council","http://opendatacommunities.org/id/metropolitan-district-council/wolverhampton","704044","Greenhous Commercials Limited","13038806","11.96","Equipment - Purchase","190398992","01/12/2017","Fleet Services","Fleet Management","R4000"
"Wolverhampton City Council","http://opendatacommunities.org/id/metropolitan-district-council/wolverhampton","704044","Greenhous Commercials Limited","13038806","0.53","Equipment - Purchase","190398992","01/12/2017","Fleet Services","Fleet Management","R4000"
"Wolverhampton City Council","http://opendatacommunities.org/id/metropolitan-district-council/wolverhampton","704044","Greenhous Commercials Limited","13042181","16.38","Equipment - Purchase","190398999","01/12/2017","Fleet Services","Fleet Management","R4000"
"Wolverhampton City Council","http://opendatacommunities.org/id/metropolitan-district-council/wolverhampton","704044","Greenhous Commercials Limited","1304045","-33.46","Equipment - Purchase","190398993","01/12/2017","Fleet Services","Fleet Management","R4000"
"Wolverhampton City Council","http://opendatacommunities.org/id/metropolitan-district-council/wolverhampton","704044","Greenhous Commercials Limited","1304045","20.04","Equipment - Purchase","190398993","01/12/2017","Fleet Services","Fleet Management","R4000"
"Wolverhampton City Council","http://opendatacommunities.org/id/metropolitan-district-council/wolverhampton","704044","Greenhous Commercials Limited","13038806","20.04","Equipment - Purchase","190398992","01/12/2017","Fleet Services","Fleet Management","R4000"
"Wolverhampton City Council","http://opendatacommunities.org/id/metropolitan-district-council/wolverhampton","704044","Greenhous Commercials Limited","13043684","2,514.84","Equipment - Purchase","190400136","06/12/2017","Fleet Services","Fleet Management","R4000"
"Wolverhampton City Council","http://opendatacommunities.org/id/metropolitan-district-council/wolverhampton","704044","Greenhous Commercials Limited","13695862","35.00","MOT & HGV Tests","190403319","15/12/2017","Fleet Services","Fleet Management","R3005"
"Wolverhampton City Council","http://opendatacommunities.org/id/metropolitan-district-council/wolverhampton","704044","Greenhous Commercials Limited","13695862","91.00","MOT & HGV Tests","190403319","15/12/2017","Fleet Services","Fleet Management","R3005"
"Wolverhampton City Council","http://opendatacommunities.org/id/metropolitan-district-council/wolverhampton","704044","Greenhous Commercials Limited","13695865","91.00","MOT & HGV Tests","190403320","15/12/2017","Fleet Services","Fleet Management","R3005"
"Wolverhampton City Council","http://opendatacommunities.org/id/metropolitan-district-council/wolverhampton","704044","Greenhous Commercials Limited","13695865","35.00","MOT & HGV Tests","190403320","15/12/2017","Fleet Services","Fleet Management","R3005"
"Wolverhampton City Council","http://opendatacommunities.org/id/metropolitan-district-council/wolverhampton","704044","Greenhous Commercials Limited","13698142","91.00","MOT & HGV Tests","190403326","15/12/2017","Fleet Services","Fleet Management","R3005"
"Wolverhampton City Council","http://opendatacommunities.org/id/metropolitan-district-council/wolverhampton","704044","Greenhous Commercials Limited","13698142","35.00","MOT & HGV Tests","190403326","15/12/2017","Fleet Services","Fleet Management","R3005"
"Wolverhampton City Council","http://opendatacommunities.org/id/metropolitan-district-council/wolverhampton","704044","Greenhous Commercials Limited","13698148","35.00","MOT & HGV Tests","190403328","15/12/2017","Fleet Services","Fleet Management","R3005"
"Wolverhampton City Council","http://opendatacommunities.org/id/metropolitan-district-council/wolverhampton","704044","Greenhous Commercials Limited","13698148","113.00","MOT & HGV Tests","190403328","15/12/2017","Fleet Services","Fleet Management","R3005"
"Wolverhampton City Council","http://opendatacommunities.org/id/metropolitan-district-council/wolverhampton","704044","Greenhous Commercials Limited","13698383","57.75","Services - Professional Fees","190402014","13/12/2017","Fleet Services","Fleet Management","R4400"
"Wolverhampton City Council","http://opendatacommunities.org/id/metropolitan-district-council/wolverhampton","704044","Greenhous Commercials Limited","13698535","45.00","Services - Professional Fees","190402016","13/12/2017","Fleet Services","Fleet Management","R4400"
"Wolverhampton City Council","http://opendatacommunities.org/id/metropolitan-district-council/wolverhampton","704044","Greenhous Commercials Limited","13698535","54.00","Services - Professional Fees","190402016","13/12/2017","Fleet Services","Fleet Management","R4400"
"Wolverhampton City Council","http://opendatacommunities.org/id/metropolitan-district-council/wolverhampton","704044","Greenhous Commercials Limited","13698535","15.00","Services - Professional Fees","190402016","13/12/2017","Fleet Services","Fleet Management","R4400"
"Wolverhampton City Council","http://opendatacommunities.org/id/metropolitan-district-council/wolverhampton","704044","Greenhous Commercials Limited","13698540","15.00","Services - Professional Fees","190402017","13/12/2017","Fleet Services","Fleet Management","R4400"
"Wolverhampton City Council","http://opendatacommunities.org/id/metropolitan-district-council/wolverhampton","704044","Greenhous Commercials Limited","13698540","65.00","Services - Professional Fees","190402017","13/12/2017","Fleet Services","Fleet Management","R4400"
"Wolverhampton City Council","http://opendatacommunities.org/id/metropolitan-district-council/wolverhampton","704044","Greenhous Commercials Limited","13045432","28.56","Equipment - Purchase","190400751","08/12/2017","Fleet Services","Fleet Management","R4000"
"Wolverhampton City Council","http://opendatacommunities.org/id/metropolitan-district-council/wolverhampton","704044","Greenhous Commercials Limited","13047800","2.03","Equipment - Purchase","190404643","20/12/2017","Fleet Services","Fleet Management","R4000"
"Wolverhampton City Council","http://opendatacommunities.org/id/metropolitan-district-council/wolverhampton","704044","Greenhous Commercials Limited","13047800","179.00","Equipment - Purchase","190404643","20/12/2017","Fleet Services","Fleet Management","R4000"
"Wolverhampton City Council","http://opendatacommunities.org/id/metropolitan-district-council/wolverhampton","704044","Greenhous Commercials Limited","13048148","129.50","Equipment - Purchase","190404646","20/12/2017","Fleet Services","Fleet Management","R4000"
"Wolverhampton City Council","http://opendatacommunities.org/id/metropolitan-district-council/wolverhampton","704044","Greenhous Commercials Limited","13698786","54.00","Services - Professional Fees","190404648","20/12/2017","Fleet Services","Fleet Management","R4400"
"Wolverhampton City Council","http://opendatacommunities.org/id/metropolitan-district-council/wolverhampton","704044","Greenhous Commercials Limited","13698786","14.00","Services - Professional Fees","190404648","20/12/2017","Fleet Services","Fleet Management","R4400"
"Wolverhampton City Council","http://opendatacommunities.org/id/metropolitan-district-council/wolverhampton","704044","Greenhous Commercials Limited","13043667","43.72","Equipment - Purchase","190400135","06/12/2017","Fleet Services","Fleet Management","R4000"
"Wolverhampton City Council","http://opendatacommunities.org/id/metropolitan-district-council/wolverhampton","704044","Greenhous Commercials Limited","13697146","14.00","Services - Professional Fees","190399005","01/12/2017","Fleet Services","Fleet Management","R4400"
"Wolverhampton City Council","http://opendatacommunities.org/id/metropolitan-district-council/wolverhampton","704044","Greenhous Commercials Limited","13697146","45.00","Services - Professional Fees","190399005","01/12/2017","Fleet Services","Fleet Management","R4400"
"Wolverhampton City Council","http://opendatacommunities.org/id/metropolitan-district-council/wolverhampton","704044","Greenhous Commercials Limited","13697146","54.00","Services - Professional Fees","190399005","01/12/2017","Fleet Services","Fleet Management","R4400"
"Wolverhampton City Council","http://opendatacommunities.org/id/metropolitan-district-council/wolverhampton","704044","Greenhous Commercials Limited","13697146","15.00","Services - Professional Fees","190399005","01/12/2017","Fleet Services","Fleet Management","R4400"
"Wolverhampton City Council","http://opendatacommunities.org/id/metropolitan-district-council/wolverhampton","704044","Greenhous Commercials Limited","13042819","8.50","Equipment - Purchase","190399001","01/12/2017","Fleet Services","Fleet Management","R4000"
"Wolverhampton City Council","http://opendatacommunities.org/id/metropolitan-district-council/wolverhampton","704044","Greenhous Commercials Limited","1304047","-20.04","Equipment - Purchase","190398994","01/12/2017","Fleet Services","Fleet Management","R4000"
"Wolverhampton City Council","http://opendatacommunities.org/id/metropolitan-district-council/wolverhampton","704044","Greenhous Commercials Limited","13037823","0.53","Equipment - Purchase","190398991","01/12/2017","Fleet Services","Fleet Management","R4000"
"Wolverhampton City Council","http://opendatacommunities.org/id/metropolitan-district-council/wolverhampton","704044","Greenhous Commercials Limited","13037823","33.46","Equipment - Purchase","190398991","01/12/2017","Fleet Services","Fleet Management","R4000"
"Wolverhampton City Council","http://opendatacommunities.org/id/metropolitan-district-council/wolverhampton","704044","Greenhous Commercials Limited","13049486","235.48","Equipment - Purchase","190406214","28/12/2017","Fleet Services","Fleet Management","R4000"
"Wolverhampton City Council","http://opendatacommunities.org/id/metropolitan-district-council/wolverhampton","704044","Greenhous Commercials Limited","13048441","160.00","Equipment - Purchase","190405263","21/12/2017","Fleet Services","Fleet Management","R4000"
"Wolverhampton City Council","http://opendatacommunities.org/id/metropolitan-district-council/wolverhampton","704044","Greenhous Commercials Limited","13698541","57.75","Services - Professional Fees","190402018","13/12/2017","Fleet Services","Fleet Management","R4400"
"Wolverhampton City Council","http://opendatacommunities.org/id/metropolitan-district-council/wolverhampton","704044","Greenhous Commercials Limited","13044127","36.22","Equipment - Purchase","190402007","13/12/2017","Fleet Services","Fleet Management","R4000"
"Wolverhampton City Council","http://opendatacommunities.org/id/metropolitan-district-council/wolverhampton","704044","Greenhous Commercials Limited","13046486","83.60","Equipment - Purchase","190402009","13/12/2017","Fleet Services","Fleet Management","R4000"
"Wolverhampton City Council","http://opendatacommunities.org/id/metropolitan-district-council/wolverhampton","704044","Greenhous Commercials Limited","13695851","35.00","MOT & HGV Tests","190403318","15/12/2017","Fleet Services","Fleet Management","R3005"
"Wolverhampton City Council","http://opendatacommunities.org/id/metropolitan-district-council/wolverhampton","704044","Greenhous Commercials Limited","13695851","113.00","MOT & HGV Tests","190403318","15/12/2017","Fleet Services","Fleet Management","R3005"
"Wolverhampton City Council","http://opendatacommunities.org/id/metropolitan-district-council/wolverhampton","704044","Greenhous Commercials Limited","13695869","91.00","MOT & HGV Tests","190403321","15/12/2017","Fleet Services","Fleet Management","R3005"
"Wolverhampton City Council","http://opendatacommunities.org/id/metropolitan-district-council/wolverhampton","704044","Greenhous Commercials Limited","13695869","35.00","MOT & HGV Tests","190403321","15/12/2017","Fleet Services","Fleet Management","R3005"
"Wolverhampton City Council","http://opendatacommunities.org/id/metropolitan-district-council/wolverhampton","704044","Greenhous Commercials Limited","13698149","35.00","MOT & HGV Tests","190403329","15/12/2017","Fleet Services","Fleet Management","R3005"
"Wolverhampton City Council","http://opendatacommunities.org/id/metropolitan-district-council/wolverhampton","704044","Greenhous Commercials Limited","13698149","113.00","MOT & HGV Tests","190403329","15/12/2017","Fleet Services","Fleet Management","R3005"
"Wolverhampton City Council","http://opendatacommunities.org/id/metropolitan-district-council/wolverhampton","704044","Greenhous Commercials Limited","13698143","91.00","MOT & HGV Tests","190403327","15/12/2017","Fleet Services","Fleet Management","R3005"
"Wolverhampton City Council","http://opendatacommunities.org/id/metropolitan-district-council/wolverhampton","704044","Greenhous Commercials Limited","13698143","35.00","MOT & HGV Tests","190403327","15/12/2017","Fleet Services","Fleet Management","R3005"
"Wolverhampton City Council","http://opendatacommunities.org/id/metropolitan-district-council/wolverhampton","704044","Greenhous Commercials Limited","13698346","50.00","Services - Professional Fees","190400754","08/12/2017","Fleet Services","Fleet Management","R4400"
"Wolverhampton City Council","http://opendatacommunities.org/id/metropolitan-district-council/wolverhampton","704044","Greenhous Commercials Limited","13698346","54.00","Services - Professional Fees","190400754","08/12/2017","Fleet Services","Fleet Management","R4400"
"Wolverhampton City Council","http://opendatacommunities.org/id/metropolitan-district-council/wolverhampton","704044","Greenhous Commercials Limited","13698346","28.88","Services - Professional Fees","190400754","08/12/2017","Fleet Services","Fleet Management","R4400"
"Wolverhampton City Council","http://opendatacommunities.org/id/metropolitan-district-council/wolverhampton","704044","Greenhous Commercials Limited","13698346","14.00","Services - Professional Fees","190400754","08/12/2017","Fleet Services","Fleet Management","R4400"
"Wolverhampton City Council","http://opendatacommunities.org/id/metropolitan-district-council/wolverhampton","704044","Greenhous Commercials Limited","13698346","11.55","Services - Professional Fees","190400754","08/12/2017","Fleet Services","Fleet Management","R4400"
"Wolverhampton City Council","http://opendatacommunities.org/id/metropolitan-district-council/wolverhampton","704044","Greenhous Commercials Limited","1362789","-40.20","Services - Professional Fees","190406215","28/12/2017","Fleet Services","Fleet Management","R4400"
"Wolverhampton City Council","http://opendatacommunities.org/id/metropolitan-district-council/wolverhampton","704044","Greenhous Commercials Limited","13697428","7.55","Services - Professional Fees","190399007","01/12/2017","Fleet Services","Fleet Management","R4400"
"Wolverhampton City Council","http://opendatacommunities.org/id/metropolitan-district-council/wolverhampton","704044","Greenhous Commercials Limited","13697428","11.55","Services - Professional Fees","190399007","01/12/2017","Fleet Services","Fleet Management","R4400"
"Wolverhampton City Council","http://opendatacommunities.org/id/metropolitan-district-council/wolverhampton","704044","Greenhous Commercials Limited","13697428","28.88","Services - Professional Fees","190399007","01/12/2017","Fleet Services","Fleet Management","R4400"
"Wolverhampton City Council","http://opendatacommunities.org/id/metropolitan-district-council/wolverhampton","704044","Greenhous Commercials Limited","13697428","11.55","Services - Professional Fees","190399007","01/12/2017","Fleet Services","Fleet Management","R4400"
"Wolverhampton City Council","http://opendatacommunities.org/id/metropolitan-district-council/wolverhampton","704044","Greenhous Commercials Limited","13697428","30.29","Services - Professional Fees","190399007","01/12/2017","Fleet Services","Fleet Management","R4400"
"Wolverhampton City Council","http://opendatacommunities.org/id/metropolitan-district-council/wolverhampton","704044","Greenhous Commercials Limited","13697428","11.55","Services - Professional Fees","190399007","01/12/2017","Fleet Services","Fleet Management","R4400"
"Wolverhampton City Council","http://opendatacommunities.org/id/metropolitan-district-council/wolverhampton","704044","Greenhous Commercials Limited","13697428","5.78","Services - Professional Fees","190399007","01/12/2017","Fleet Services","Fleet Management","R4400"
"Wolverhampton City Council","http://opendatacommunities.org/id/metropolitan-district-council/wolverhampton","704044","Greenhous Commercials Limited","13697428","17.58","Services - Professional Fees","190399007","01/12/2017","Fleet Services","Fleet Management","R4400"
"Wolverhampton City Council","http://opendatacommunities.org/id/metropolitan-district-council/wolverhampton","704044","Greenhous Commercials Limited","13697428","6.84","Services - Professional Fees","190399007","01/12/2017","Fleet Services","Fleet Management","R4400"
"Wolverhampton City Council","http://opendatacommunities.org/id/metropolitan-district-council/wolverhampton","704044","Greenhous Commercials Limited","13697428","1.47","Services - Professional Fees","190399007","01/12/2017","Fleet Services","Fleet Management","R4400"
"Wolverhampton City Council","http://opendatacommunities.org/id/metropolitan-district-council/wolverhampton","704044","Greenhous Commercials Limited","13697428","57.75","Services - Professional Fees","190399007","01/12/2017","Fleet Services","Fleet Management","R4400"
"Wolverhampton City Council","http://opendatacommunities.org/id/metropolitan-district-council/wolverhampton","704044","Greenhous Commercials Limited","13697428","92.15","Services - Professional Fees","190399007","01/12/2017","Fleet Services","Fleet Management","R4400"
"Wolverhampton City Council","http://opendatacommunities.org/id/metropolitan-district-council/wolverhampton","704044","Greenhous Commercials Limited","13697428","144.38","Services - Professional Fees","190399007","01/12/2017","Fleet Services","Fleet Management","R4400"
"Wolverhampton City Council","http://opendatacommunities.org/id/metropolitan-district-council/wolverhampton","704044","Greenhous Commercials Limited","13042712","126.00","Equipment - Purchase","190399000","01/12/2017","Fleet Services","Fleet Management","R4000"
"Wolverhampton City Council","http://opendatacommunities.org/id/metropolitan-district-council/wolverhampton","704044","Greenhous Commercials Limited","13697428","5.78","Services - Professional Fees","190399007","01/12/2017","Fleet Services","Fleet Management","R4400"
"Wolverhampton City Council","http://opendatacommunities.org/id/metropolitan-district-council/wolverhampton","704044","Greenhous Commercials Limited","13697964","17.33","Services - Professional Fees","190400139","06/12/2017","Fleet Services","Fleet Management","R4400"
"Wolverhampton City Council","http://opendatacommunities.org/id/metropolitan-district-council/wolverhampton","704044","Greenhous Commercials Limited","13697964","3.42","Services - Professional Fees","190400139","06/12/2017","Fleet Services","Fleet Management","R4400"
"Wolverhampton City Council","http://opendatacommunities.org/id/metropolitan-district-council/wolverhampton","704044","Greenhous Commercials Limited","13697964","54.00","Services - Professional Fees","190400139","06/12/2017","Fleet Services","Fleet Management","R4400"
"Wolverhampton City Council","http://opendatacommunities.org/id/metropolitan-district-council/wolverhampton","704044","Greenhous Commercials Limited","13697964","5.78","Services - Professional Fees","190400139","06/12/2017","Fleet Services","Fleet Management","R4400"
"Wolverhampton City Council","http://opendatacommunities.org/id/metropolitan-district-council/wolverhampton","704044","Greenhous Commercials Limited","13697964","50.00","Services - Professional Fees","190400139","06/12/2017","Fleet Services","Fleet Management","R4400"
"Wolverhampton City Council","http://opendatacommunities.org/id/metropolitan-district-council/wolverhampton","704044","Greenhous Commercials Limited","13697964","14.00","Services - Professional Fees","190400139","06/12/2017","Fleet Services","Fleet Management","R4400"
"Wolverhampton City Council","http://opendatacommunities.org/id/metropolitan-district-council/wolverhampton","704044","Greenhous Commercials Limited","13697856","50.00","Services - Professional Fees","190400138","06/12/2017","Fleet Services","Fleet Management","R4400"
"Wolverhampton City Council","http://opendatacommunities.org/id/metropolitan-district-council/wolverhampton","704044","Greenhous Commercials Limited","13697428","50.00","Services - Professional Fees","190399007","01/12/2017","Fleet Services","Fleet Management","R4400"
"Wolverhampton City Council","http://opendatacommunities.org/id/metropolitan-district-council/wolverhampton","704044","Greenhous Commercials Limited","13697428","86.63","Services - Professional Fees","190399007","01/12/2017","Fleet Services","Fleet Management","R4400"
"Wolverhampton City Council","http://opendatacommunities.org/id/metropolitan-district-council/wolverhampton","704044","Greenhous Commercials Limited","13697428","100.87","Services - Professional Fees","190399007","01/12/2017","Fleet Services","Fleet Management","R4400"
"Wolverhampton City Council","http://opendatacommunities.org/id/metropolitan-district-council/wolverhampton","704044","Greenhous Commercials Limited","13697428","28.61","Services - Professional Fees","190399007","01/12/2017","Fleet Services","Fleet Management","R4400"
"Wolverhampton City Council","http://opendatacommunities.org/id/metropolitan-district-council/wolverhampton","704044","Greenhous Commercials Limited","13041593","37.38","Equipment - Purchase","190398998","01/12/2017","Fleet Services","Fleet Management","R4000"
"Wolverhampton City Council","http://opendatacommunities.org/id/metropolitan-district-council/wolverhampton","704044","Greenhous Commercials Limited","1304063","-0.53","Equipment - Purchase","190398995","01/12/2017","Fleet Services","Fleet Management","R4000"
"Wolverhampton City Council","http://opendatacommunities.org/id/metropolitan-district-council/wolverhampton","704044","Greenhous Commercials Limited","13047848","128.87","Equipment - Purchase","190404645","20/12/2017","Fleet Services","Fleet Management","R4000"
"Wolverhampton City Council","http://opendatacommunities.org/id/metropolitan-district-council/wolverhampton","704044","Greenhous Commercials Limited","13041388","645.00","Equipment - Purchase","190404639","20/12/2017","Fleet Services","Fleet Management","R4000"
"Wolverhampton City Council","http://opendatacommunities.org/id/metropolitan-district-council/wolverhampton","704044","Greenhous Commercials Limited","13041388","44.87","Equipment - Purchase","190404639","20/12/2017","Fleet Services","Fleet Management","R4000"
"Wolverhampton City Council","http://opendatacommunities.org/id/metropolitan-district-council/wolverhampton","704044","Greenhous Commercials Limited","13041388","17.64","Equipment - Purchase","190404639","20/12/2017","Fleet Services","Fleet Management","R4000"
"Wolverhampton City Council","http://opendatacommunities.org/id/metropolitan-district-council/wolverhampton","704044","Greenhous Commercials Limited","13047602","50.50","Equipment - Purchase","190405260","21/12/2017","Fleet Services","Fleet Management","R4000"
"Wolverhampton City Council","http://opendatacommunities.org/id/metropolitan-district-council/wolverhampton","704044","Greenhous Commercials Limited","13047602","99.00","Equipment - Purchase","190405260","21/12/2017","Fleet Services","Fleet Management","R4000"
"Wolverhampton City Council","http://opendatacommunities.org/id/metropolitan-district-council/wolverhampton","704044","Greenhous Commercials Limited","13698820","50.00","Services - Professional Fees","190405264","21/12/2017","Fleet Services","Fleet Management","R4400"
"Wolverhampton City Council","http://opendatacommunities.org/id/metropolitan-district-council/wolverhampton","704055","Ground Investigation & Piling Limited","33637C","-6,770.68","Services - Professional Fees","130189194","06/12/2017","Estates and Valuations","Disposal Costs","R4400"
"Wolverhampton City Council","http://opendatacommunities.org/id/metropolitan-district-council/wolverhampton","704055","Ground Investigation & Piling Limited","33840","4,320.78","Services - Professional Fees","130197263","20/12/2017","School Planning & Resources","Primary Expansion Feasibility Work","R4400"
"Wolverhampton City Council","http://opendatacommunities.org/id/metropolitan-district-council/wolverhampton","704055","Ground Investigation & Piling Limited","CEB/26072","3,930.78","Services - Professional Fees","130194602","06/12/2017","School Planning & Resources","Primary Expansion Feasibility Work","R4400"
"Wolverhampton City Council","http://opendatacommunities.org/id/metropolitan-district-council/wolverhampton","704055","Ground Investigation & Piling Limited","33807","253.96","Construction and Conversion","130196238","06/12/2017","-","Sports Investment Strategy","C1100"
"Wolverhampton City Council","http://opendatacommunities.org/id/metropolitan-district-council/wolverhampton","704055","Ground Investigation & Piling Limited","33807","6,348.98","Construction and Conversion","130196238","06/12/2017","-","Sports Investment Strategy","C1100"
"Wolverhampton City Council","http://opendatacommunities.org/id/metropolitan-district-council/wolverhampton","704055","Ground Investigation & Piling Limited","33839C","-3,930.78","Services - Professional Fees","130197262","20/12/2017","School Planning & Resources","Primary Expansion Feasibility Work","R4400"
"Wolverhampton City Council","http://opendatacommunities.org/id/metropolitan-district-council/wolverhampton","704061","Guest Motors Limited","13036616","11.50","Equipment - Purchase","190398990","01/12/2017","Fleet Services","Fleet Management","R4000"
"Wolverhampton City Council","http://opendatacommunities.org/id/metropolitan-district-council/wolverhampton","704061","Guest Motors Limited","13036616","19.68","Equipment - Purchase","190398990","01/12/2017","Fleet Services","Fleet Management","R4000"
"Wolverhampton City Council","http://opendatacommunities.org/id/metropolitan-district-council/wolverhampton","704061","Guest Motors Limited","13036616","11.02","Equipment - Purchase","190398990","01/12/2017","Fleet Services","Fleet Management","R4000"
"Wolverhampton City Council","http://opendatacommunities.org/id/metropolitan-district-council/wolverhampton","704061","Guest Motors Limited","13036782","87.49","Equipment - Purchase","190402003","13/12/2017","Fleet Services","Fleet Management","R4000"
"Wolverhampton City Council","http://opendatacommunities.org/id/metropolitan-district-council/wolverhampton","704061","Guest Motors Limited","13036782","20.21","Equipment - Purchase","190402003","13/12/2017","Fleet Services","Fleet Management","R4000"
"Wolverhampton City Council","http://opendatacommunities.org/id/metropolitan-district-council/wolverhampton","704061","Guest Motors Limited","13037160","167.90","Equipment - Purchase","190406213","28/12/2017","Fleet Services","Fleet Management","R4000"
"Wolverhampton City Council","http://opendatacommunities.org/id/metropolitan-district-council/wolverhampton","704061","Guest Motors Limited","13036778","25.06","Equipment - Purchase","190402002","13/12/2017","Fleet Services","Fleet Management","R4000"
"Wolverhampton City Council","http://opendatacommunities.org/id/metropolitan-district-council/wolverhampton","704061","Guest Motors Limited","13036778","10.23","Equipment - Purchase","190402002","13/12/2017","Fleet Services","Fleet Management","R4000"
"Wolverhampton City Council","http://opendatacommunities.org/id/metropolitan-district-council/wolverhampton","704061","Guest Motors Limited","13516564","304.50","Services - Professional Fees","190402011","13/12/2017","Fleet Services","Fleet Management","R4400"
"Wolverhampton City Council","http://opendatacommunities.org/id/metropolitan-district-council/wolverhampton","704061","Guest Motors Limited","13036778","145.46","Equipment - Purchase","190402002","13/12/2017","Fleet Services","Fleet Management","R4000"
"Wolverhampton City Council","http://opendatacommunities.org/id/metropolitan-district-council/wolverhampton","704061","Guest Motors Limited","13036778","27.79","Equipment - Purchase","190402002","13/12/2017","Fleet Services","Fleet Management","R4000"
"Wolverhampton City Council","http://opendatacommunities.org/id/metropolitan-district-council/wolverhampton","704061","Guest Motors Limited","13036778","75.48","Equipment - Purchase","190402002","13/12/2017","Fleet Services","Fleet Management","R4000"
"Wolverhampton City Council","http://opendatacommunities.org/id/metropolitan-district-council/wolverhampton","704061","Guest Motors Limited","13036778","75.47","Equipment - Purchase","190402002","13/12/2017","Fleet Services","Fleet Management","R4000"
"Wolverhampton City Council","http://opendatacommunities.org/id/metropolitan-district-council/wolverhampton","704061","Guest Motors Limited","13516351","8.39","Services - Professional Fees","190399003","01/12/2017","Fleet Services","Fleet Management","R4400"
"Wolverhampton City Council","http://opendatacommunities.org/id/metropolitan-district-council/wolverhampton","704061","Guest Motors Limited","13516351","261.00","Services - Professional Fees","190399003","01/12/2017","Fleet Services","Fleet Management","R4400"
"Wolverhampton City Council","http://opendatacommunities.org/id/metropolitan-district-council/wolverhampton","704061","Guest Motors Limited","13036798","34.49","Equipment - Purchase","190402004","13/12/2017","Fleet Services","Fleet Management","R4000"
"Wolverhampton City Council","http://opendatacommunities.org/id/metropolitan-district-council/wolverhampton","704061","Guest Motors Limited","13036798","6.12","Equipment - Purchase","190402004","13/12/2017","Fleet Services","Fleet Management","R4000"
"Wolverhampton City Council","http://opendatacommunities.org/id/metropolitan-district-council/wolverhampton","704061","Guest Motors Limited","13516338","261.00","Services - Professional Fees","190399002","01/12/2017","Fleet Services","Fleet Management","R4400"
"Wolverhampton City Council","http://opendatacommunities.org/id/metropolitan-district-council/wolverhampton","704061","Guest Motors Limited","13036838","739.66","Equipment - Purchase","190402005","13/12/2017","Fleet Services","Fleet Management","R4000"
"Wolverhampton City Council","http://opendatacommunities.org/id/metropolitan-district-council/wolverhampton","704067","Gunnebo Security UK Limited","10083377","395.00","Equipment - Purchase","130197414","08/12/2017","Catering","Education Catering - General Overheads","R4000"
"Wolverhampton City Council","http://opendatacommunities.org/id/metropolitan-district-council/wolverhampton","704079","H Jenkinson & Company Ltd","SINV00785590","1,014.00","Furniture","130197415","01/12/2017","Facilities Management","Civic Centre","R4004"
"Wolverhampton City Council","http://opendatacommunities.org/id/metropolitan-district-council/wolverhampton","704079","H Jenkinson & Company Ltd","SINV00785590","644.00","Furniture","130197415","01/12/2017","Facilities Management","Civic Centre","R4004"
"Wolverhampton City Council","http://opendatacommunities.org/id/metropolitan-district-council/wolverhampton","704079","H Jenkinson & Company Ltd","SINV00785590","767.10","Furniture","130197415","01/12/2017","Facilities Management","Civic Centre","R4004"
"Wolverhampton City Council","http://opendatacommunities.org/id/metropolitan-district-council/wolverhampton","704097","Hags-Smp Limited Rss Playmakers","054800","85.00","Equipment - R & M","130197050","06/12/2017","Environmental Maintenance","Parks - East Area Management","R4003"
"Wolverhampton City Council","http://opendatacommunities.org/id/metropolitan-district-council/wolverhampton","704097","Hags-Smp Limited Rss Playmakers","054988","23.50","Equipment - R & M","130197051","20/12/2017","Environmental Maintenance","Parks - East Area Management","R4003"
"Wolverhampton City Council","http://opendatacommunities.org/id/metropolitan-district-council/wolverhampton","704097","Hags-Smp Limited Rss Playmakers","053591","250.00","Equipment - R & M","130199670","27/12/2017","Environmental Maintenance","Parks - South West Area Management","R4003"
"Wolverhampton City Council","http://opendatacommunities.org/id/metropolitan-district-council/wolverhampton","704097","Hags-Smp Limited Rss Playmakers","055258","181.50","Equipment - R & M","130199674","27/12/2017","Environmental Maintenance","Parks - South West Area Management","R4003"
"Wolverhampton City Council","http://opendatacommunities.org/id/metropolitan-district-council/wolverhampton","704097","Hags-Smp Limited Rss Playmakers","054799","24.00","Equipment - R & M","130197417","06/12/2017","Environmental Maintenance","Parks - East Area Management","R4003"
"Wolverhampton City Council","http://opendatacommunities.org/id/metropolitan-district-council/wolverhampton","704097","Hags-Smp Limited Rss Playmakers","055120","919.00","Equipment - R & M","130197556","20/12/2017","Environmental Maintenance","Parks - East Area Management","R4003"
"Wolverhampton City Council","http://opendatacommunities.org/id/metropolitan-district-council/wolverhampton","704097","Hags-Smp Limited Rss Playmakers","054841","40.15","Equipment - R & M","130195325","06/12/2017","Environmental Maintenance","Parks - South West Area Management","R4003"
"Wolverhampton City Council","http://opendatacommunities.org/id/metropolitan-district-council/wolverhampton","704097","Hags-Smp Limited Rss Playmakers","054989","187.20","Equipment - R & M","130198718","20/12/2017","Environmental Maintenance","Parks - East Area Management","R4003"
"Wolverhampton City Council","http://opendatacommunities.org/id/metropolitan-district-council/wolverhampton","704097","Hags-Smp Limited Rss Playmakers","054658","91.31","Equipment - R & M","130197416","01/12/2017","Environmental Maintenance","Parks - South West Area Management","R4003"
"Wolverhampton City Council","http://opendatacommunities.org/id/metropolitan-district-council/wolverhampton","704097","Hags-Smp Limited Rss Playmakers","053532","40.00","Equipment - R & M","130199666","27/12/2017","Environmental Maintenance","Parks - South West Area Management","R4003"
"Wolverhampton City Council","http://opendatacommunities.org/id/metropolitan-district-council/wolverhampton","704097","Hags-Smp Limited Rss Playmakers","054613","1,062.50","Equipment - R & M","130197049","01/12/2017","Environmental Maintenance","Parks - South West Area Management","R4003"
"Wolverhampton City Council","http://opendatacommunities.org/id/metropolitan-district-council/wolverhampton","704097","Hags-Smp Limited Rss Playmakers","054876","11.76","Equipment - R & M","130195542","06/12/2017","Environmental Maintenance","Parks - East Area Management","R4003"
"Wolverhampton City Council","http://opendatacommunities.org/id/metropolitan-district-council/wolverhampton","704132","Harold L. Smith Transmissions Limited","0000252139","4,300.00","Services - Professional Fees","190403311","15/12/2017","Fleet Services","Fleet Management","R4400"
"Wolverhampton City Council","http://opendatacommunities.org/id/metropolitan-district-council/wolverhampton","704132","Harold L. Smith Transmissions Limited","0000025348","-350.00","Services - Professional Fees","190403309","15/12/2017","Fleet Services","Fleet Management","R4400"
"Wolverhampton City Council","http://opendatacommunities.org/id/metropolitan-district-council/wolverhampton","704132","Harold L. Smith Transmissions Limited","0000252188","582.50","Equipment - Purchase","190406209","28/12/2017","Fleet Services","Fleet Management","R4000"
"Wolverhampton City Council","http://opendatacommunities.org/id/metropolitan-district-council/wolverhampton","704139","Harrison Grant","79/17","6.00","Acquisition of Land and Buildings","130197557","20/12/2017","-","Site Remediation Farndale","C1000"
"Wolverhampton City Council","http://opendatacommunities.org/id/metropolitan-district-council/wolverhampton","704139","Harrison Grant","79/17","4,551.36","Acquisition of Land and Buildings","130197557","20/12/2017","-","Site Remediation Farndale","C1000"
"Wolverhampton City Council","http://opendatacommunities.org/id/metropolitan-district-council/wolverhampton","704139","Harrison Grant","79/17","49.00","Acquisition of Land and Buildings","130197557","20/12/2017","-","Site Remediation Farndale","C1000"
"Wolverhampton City Council","http://opendatacommunities.org/id/metropolitan-district-council/wolverhampton","704163","Hays Specialist Recruitment Limited","1008044995","289.06","Agency Staff","130194943","06/12/2017","The Hub","Payroll/HR","R1100"
"Wolverhampton City Council","http://opendatacommunities.org/id/metropolitan-district-council/wolverhampton","704163","Hays Specialist Recruitment Limited","1007932367","55.44","Services - Professional Fees","130197771","15/12/2017","Early Intervention","EIP Locality 1 - Eastfields","R4400"
"Wolverhampton City Council","http://opendatacommunities.org/id/metropolitan-district-council/wolverhampton","704163","Hays Specialist Recruitment Limited","1008089415","34.55","Services - Professional Fees","130196725","20/12/2017","Early Intervention","EIP Locality 2 � Bilston/Rocket Pool","R4400"
"Wolverhampton City Council","http://opendatacommunities.org/id/metropolitan-district-council/wolverhampton","704163","Hays Specialist Recruitment Limited","1008119894","31.10","Services - Professional Fees","130197774","27/12/2017","Early Intervention","EIP Locality 2 � Bilston/Rocket Pool","R4400"
"Wolverhampton City Council","http://opendatacommunities.org/id/metropolitan-district-council/wolverhampton","704163","Hays Specialist Recruitment Limited","1007953043","27.72","Services - Professional Fees","130197773","15/12/2017","Early Intervention","EIP Locality 1 - Eastfields","R4400"
"Wolverhampton City Council","http://opendatacommunities.org/id/metropolitan-district-council/wolverhampton","704163","Hays Specialist Recruitment Limited","1008076471","34.55","Services - Professional Fees","130197053","13/12/2017","Early Intervention","EIP Locality 2 � Bilston/Rocket Pool","R4400"
"Wolverhampton City Council","http://opendatacommunities.org/id/metropolitan-district-council/wolverhampton","704163","Hays Specialist Recruitment Limited","1008119548","34.55","Services - Professional Fees","130197418","27/12/2017","Early Intervention","EIP Locality 2 � Bilston/Rocket Pool","R4400"
"Wolverhampton City Council","http://opendatacommunities.org/id/metropolitan-district-council/wolverhampton","704163","Hays Specialist Recruitment Limited","1008075466","34.55","Services - Professional Fees","130196069","13/12/2017","Early Intervention","EIP Locality 2 � Bilston/Rocket Pool","R4400"
"Wolverhampton City Council","http://opendatacommunities.org/id/metropolitan-district-council/wolverhampton","704163","Hays Specialist Recruitment Limited","1007912448","41.58","Services - Professional Fees","130197770","15/12/2017","Early Intervention","EIP Locality 1 - Eastfields","R4400"
"Wolverhampton City Council","http://opendatacommunities.org/id/metropolitan-district-council/wolverhampton","704163","Hays Specialist Recruitment Limited","1008119893","31.10","Services - Professional Fees","130197419","27/12/2017","Early Intervention","EIP Locality 2 � Bilston/Rocket Pool","R4400"
"Wolverhampton City Council","http://opendatacommunities.org/id/metropolitan-district-council/wolverhampton","704163","Hays Specialist Recruitment Limited","1008044885","230.08","Agency Staff","130195887","13/12/2017","The Hub","Payroll/HR","R1100"
"Wolverhampton City Council","http://opendatacommunities.org/id/metropolitan-district-council/wolverhampton","704163","Hays Specialist Recruitment Limited","1008075746","34.55","Services - Professional Fees","130197052","13/12/2017","Early Intervention","EIP Locality 2 � Bilston/Rocket Pool","R4400"
"Wolverhampton City Council","http://opendatacommunities.org/id/metropolitan-district-council/wolverhampton","704163","Hays Specialist Recruitment Limited","1007938962","55.44","Services - Professional Fees","130197772","08/12/2017","Early Intervention","EIP Locality 1 - Eastfields","R4400"
"Wolverhampton City Council","http://opendatacommunities.org/id/metropolitan-district-council/wolverhampton","704183","Headway Black Country","291820171227","200.00","TPP - Day Care","190406066","28/12/2017","Physical Disabilities Care Purchasing","PD Care Purchasing (Spot Placements)","R5430"
"Wolverhampton City Council","http://opendatacommunities.org/id/metropolitan-district-council/wolverhampton","704183","Headway Black Country","291820171227","200.00","TPP - Day Care","190406066","28/12/2017","Physical Disabilities Care Purchasing","PD Care Purchasing (Spot Placements)","R5430"
"Wolverhampton City Council","http://opendatacommunities.org/id/metropolitan-district-council/wolverhampton","704183","Headway Black Country","291720171227","200.00","TPP - Day Care","190406065","28/12/2017","Physical Disabilities Care Purchasing","PD Care Purchasing (Spot Placements)","R5430"
"Wolverhampton City Council","http://opendatacommunities.org/id/metropolitan-district-council/wolverhampton","704183","Headway Black Country","291920171227","400.00","TPP - Day Care","190406067","28/12/2017","Physical Disabilities Care Purchasing","PD Care Purchasing (Spot Placements)","R5430"
"Wolverhampton City Council","http://opendatacommunities.org/id/metropolitan-district-council/wolverhampton","704183","Headway Black Country","291620171227","400.00","TPP - Day Care","190406064","28/12/2017","Physical Disabilities Care Purchasing","PD Care Purchasing (Spot Placements)","R5430"
"Wolverhampton City Council","http://opendatacommunities.org/id/metropolitan-district-council/wolverhampton","704183","Headway Black Country","292020171227","120.00","TPP - Day Care","190406068","28/12/2017","Physical Disabilities Care Purchasing","PD Care Purchasing (Spot Placements)","R5430"
"Wolverhampton City Council","http://opendatacommunities.org/id/metropolitan-district-council/wolverhampton","704205","Heath Lambert Limited (Client Money)","Our ref: All Risk - Fine Art Your ref: 28777076","112.55","Insurance - General","190401918","13/12/2017","Audit Services","Property Insurances","R4962"
"Wolverhampton City Council","http://opendatacommunities.org/id/metropolitan-district-council/wolverhampton","704205","Heath Lambert Limited (Client Money)","Our ref: Property - Demolition only Burdett House Your ref: 2194780","-206.75","Insurance - General","190401920","13/12/2017","Audit Services","Property Insurances","R4962"
"Wolverhampton City Council","http://opendatacommunities.org/id/metropolitan-district-council/wolverhampton","704205","Heath Lambert Limited (Client Money)","Our ref: Propety  - Delection of Goldthorn Park Primary Your ref: 2194780","-888.32","Insurance - General","190401923","13/12/2017","Audit Services","Property Insurances","R4962"
"Wolverhampton City Council","http://opendatacommunities.org/id/metropolitan-district-council/wolverhampton","704205","Heath Lambert Limited (Client Money)","Our ref: Property - amendments and renewal Your ref: 2194780","-5,660.92","Insurance - General","190401921","13/12/2017","Audit Services","Property Insurances","R4962"
"Wolverhampton City Council","http://opendatacommunities.org/id/metropolitan-district-council/wolverhampton","704205","Heath Lambert Limited (Client Money)","Our ref: Property - Deletion of Woodfield Infant & Junior Schools Your ref: 2197480","-1,567.27","Insurance - General","190401922","13/12/2017","Audit Services","Property Insurances","R4962"
"Wolverhampton City Council","http://opendatacommunities.org/id/metropolitan-district-council/wolverhampton","704205","Heath Lambert Limited (Client Money)","Our ref: Property - High Rise Blocks Your ref: 2194780","50,680.36","Insurance - General","190401919","13/12/2017","Audit Services","Property Insurances","R4962"
"Wolverhampton City Council","http://opendatacommunities.org/id/metropolitan-district-council/wolverhampton","704207","Heath Town Snr Citizens Welfare Proj","00017/1920171212","92.00","TPP - Day Care","190402098","13/12/2017","Older People Care Purchasing","OP Care Purchasing (Spot Placements)","R5430"
"Wolverhampton City Council","http://opendatacommunities.org/id/metropolitan-district-council/wolverhampton","704207","Heath Town Snr Citizens Welfare Proj","00017/1920171212","92.00","TPP - Day Care","190402098","13/12/2017","Older People Care Purchasing","OP Care Purchasing (Spot Placements)","R5430"
"Wolverhampton City Council","http://opendatacommunities.org/id/metropolitan-district-council/wolverhampton","704207","Heath Town Snr Citizens Welfare Proj","00017/1920171212","23.00","TPP - Day Care","190402098","13/12/2017","Older People Care Purchasing","OP Care Purchasing (Spot Placements)","R5430"
"Wolverhampton City Council","http://opendatacommunities.org/id/metropolitan-district-council/wolverhampton","704207","Heath Town Snr Citizens Welfare Proj","00017/1920171212","161.00","TPP - Day Care","190402098","13/12/2017","Older People Care Purchasing","OP Care Purchasing (Spot Placements)","R5430"
"Wolverhampton City Council","http://opendatacommunities.org/id/metropolitan-district-council/wolverhampton","704207","Heath Town Snr Citizens Welfare Proj","00017/1920171212","184.00","TPP - Day Care","190402098","13/12/2017","Older People Care Purchasing","OP Care Purchasing (Spot Placements)","R5430"
"Wolverhampton City Council","http://opendatacommunities.org/id/metropolitan-district-council/wolverhampton","704207","Heath Town Snr Citizens Welfare Proj","00017/1920171212","23.00","TPP - Day Care","190402098","13/12/2017","Older People Care Purchasing","OP Care Purchasing (Spot Placements)","R5430"
"Wolverhampton City Council","http://opendatacommunities.org/id/metropolitan-district-council/wolverhampton","704207","Heath Town Snr Citizens Welfare Proj","00017/1920171212","184.00","TPP - Day Care","190402098","13/12/2017","Older People Care Purchasing","OP Care Purchasing (Spot Placements)","R5430"
"Wolverhampton City Council","http://opendatacommunities.org/id/metropolitan-district-council/wolverhampton","704207","Heath Town Snr Citizens Welfare Proj","00017/1920171212","184.00","TPP - Day Care","190402098","13/12/2017","Older People Care Purchasing","OP Care Purchasing (Spot Placements)","R5430"
"Wolverhampton City Council","http://opendatacommunities.org/id/metropolitan-district-council/wolverhampton","704207","Heath Town Snr Citizens Welfare Proj","00017/1920171212","184.00","TPP - Day Care","190402098","13/12/2017","Older People Care Purchasing","OP Care Purchasing (Spot Placements)","R5430"
"Wolverhampton City Council","http://opendatacommunities.org/id/metropolitan-district-council/wolverhampton","704207","Heath Town Snr Citizens Welfare Proj","00017/1920171212","276.00","TPP - Day Care","190402098","13/12/2017","Older People Care Purchasing","OP Care Purchasing (Spot Placements)","R5430"
"Wolverhampton City Council","http://opendatacommunities.org/id/metropolitan-district-council/wolverhampton","704207","Heath Town Snr Citizens Welfare Proj","00017/1920171212","115.00","TPP - Day Care","190402098","13/12/2017","Older People Care Purchasing","OP Care Purchasing (Spot Placements)","R5430"
"Wolverhampton City Council","http://opendatacommunities.org/id/metropolitan-district-council/wolverhampton","704207","Heath Town Snr Citizens Welfare Proj","00017/1920171212","92.00","TPP - Day Care","190402098","13/12/2017","Older People Care Purchasing","OP Care Purchasing (Spot Placements)","R5430"
"Wolverhampton City Council","http://opendatacommunities.org/id/metropolitan-district-council/wolverhampton","704207","Heath Town Snr Citizens Welfare Proj","00017/1920171212","276.00","TPP - Day Care","190402098","13/12/2017","Older People Care Purchasing","OP Care Purchasing (Spot Placements)","R5430"
"Wolverhampton City Council","http://opendatacommunities.org/id/metropolitan-district-council/wolverhampton","704207","Heath Town Snr Citizens Welfare Proj","00017/1920171212","184.00","TPP - Day Care","190402098","13/12/2017","Older People Care Purchasing","OP Care Purchasing (Spot Placements)","R5430"
"Wolverhampton City Council","http://opendatacommunities.org/id/metropolitan-district-council/wolverhampton","704207","Heath Town Snr Citizens Welfare Proj","00017/1920171212","184.00","TPP - Day Care","190402098","13/12/2017","Older People Care Purchasing","OP Care Purchasing (Spot Placements)","R5430"
"Wolverhampton City Council","http://opendatacommunities.org/id/metropolitan-district-council/wolverhampton","704207","Heath Town Snr Citizens Welfare Proj","00017/1920171212","276.00","TPP - Day Care","190402098","13/12/2017","Older People Care Purchasing","OP Care Purchasing (Spot Placements)","R5430"
"Wolverhampton City Council","http://opendatacommunities.org/id/metropolitan-district-council/wolverhampton","704207","Heath Town Snr Citizens Welfare Proj","00017/1920171212","138.00","TPP - Day Care","190402098","13/12/2017","Older People Care Purchasing","OP Care Purchasing (Spot Placements)","R5430"
"Wolverhampton City Council","http://opendatacommunities.org/id/metropolitan-district-council/wolverhampton","704207","Heath Town Snr Citizens Welfare Proj","00017/1920171212","184.00","TPP - Day Care","190402098","13/12/2017","Older People Care Purchasing","OP Care Purchasing (Spot Placements)","R5430"
"Wolverhampton City Council","http://opendatacommunities.org/id/metropolitan-district-council/wolverhampton","704207","Heath Town Snr Citizens Welfare Proj","00017/1920171212","92.00","TPP - Day Care","190402098","13/12/2017","Older People Care Purchasing","OP Care Purchasing (Spot Placements)","R5430"
"Wolverhampton City Council","http://opendatacommunities.org/id/metropolitan-district-council/wolverhampton","704207","Heath Town Snr Citizens Welfare Proj","00017/1920171212","23.00","TPP - Day Care","190402098","13/12/2017","Older People Care Purchasing","OP Care Purchasing (Spot Placements)","R5430"
"Wolverhampton City Council","http://opendatacommunities.org/id/metropolitan-district-council/wolverhampton","704207","Heath Town Snr Citizens Welfare Proj","00017/1920171212","92.00","TPP - Day Care","190402098","13/12/2017","Older People Care Purchasing","OP Care Purchasing (Spot Placements)","R5430"
"Wolverhampton City Council","http://opendatacommunities.org/id/metropolitan-district-council/wolverhampton","704207","Heath Town Snr Citizens Welfare Proj","00017/1920171212","92.00","TPP - Day Care","190402098","13/12/2017","Older People Care Purchasing","OP Care Purchasing (Spot Placements)","R5430"
"Wolverhampton City Council","http://opendatacommunities.org/id/metropolitan-district-council/wolverhampton","704207","Heath Town Snr Citizens Welfare Proj","00017/1920171212","69.00","TPP - Day Care","190402098","13/12/2017","Older People Care Purchasing","OP Care Purchasing (Spot Placements)","R5430"
"Wolverhampton City Council","http://opendatacommunities.org/id/metropolitan-district-council/wolverhampton","704227","Hemming Group Limited","AD10994","2,250.00","Staff Advertising Costs","130197775","06/12/2017","Management and Administration","Public Health Support Costs","R1700"
"Wolverhampton City Council","http://opendatacommunities.org/id/metropolitan-district-council/wolverhampton","704266","Hills Coaches Limited","31723","300.00","Client Transport","130194474","06/12/2017","Black Country Transport","Black Country Transport Director","R3042"
"Wolverhampton City Council","http://opendatacommunities.org/id/metropolitan-district-council/wolverhampton","704266","Hills Coaches Limited","31320","900.00","Education trips, Holidays, Outings & Activities","130197737","08/12/2017","Schools","Uplands Junior School","R4970"
"Wolverhampton City Council","http://opendatacommunities.org/id/metropolitan-district-council/wolverhampton","704266","Hills Coaches Limited","31385","560.00","Education trips, Holidays, Outings & Activities","130197736","06/12/2017","Schools","Uplands Junior School","R4970"
"Wolverhampton City Council","http://opendatacommunities.org/id/metropolitan-district-council/wolverhampton","704271","Hilton Main Construction Limited","31546","8,630.56","R&M - Departmental planned (external)","130196727","15/12/2017","Parking Services","Unmanned Car Parks","R2001"
"Wolverhampton City Council","http://opendatacommunities.org/id/metropolitan-district-council/wolverhampton","704271","Hilton Main Construction Limited","31685","1,727.11","R&M - Departmental response (external)","130198891","27/12/2017","Highways Maintenance","Brook course, Culvert & Subway Maintenance","R2003"
"Wolverhampton City Council","http://opendatacommunities.org/id/metropolitan-district-council/wolverhampton","704271","Hilton Main Construction Limited","31699","12,993.00","R&M - Departmental response (external)","130199081","27/12/2017","Highways Maintenance","Fencing & Guard Rails","R2003"
"Wolverhampton City Council","http://opendatacommunities.org/id/metropolitan-district-council/wolverhampton","704271","Hilton Main Construction Limited","31686","5,688.43","R&M - Departmental response (external)","130198892","27/12/2017","Highways Maintenance","Highway & Land Drainage","R2003"
"Wolverhampton City Council","http://opendatacommunities.org/id/metropolitan-district-council/wolverhampton","704271","Hilton Main Construction Limited","31435","6,300.00","R&M - Departmental response (external)","130199151","15/12/2017","Highways Maintenance","Patching","R2003"
"Wolverhampton City Council","http://opendatacommunities.org/id/metropolitan-district-council/wolverhampton","704271","Hilton Main Construction Limited","31659","1,740.00","Hire of Vehicles","190406306","29/12/2017","Fleet Services","Fleet Management","R3200"
"Wolverhampton City Council","http://opendatacommunities.org/id/metropolitan-district-council/wolverhampton","704271","Hilton Main Construction Limited","31433","3,020.80","R&M - Departmental response (external)","130194270","08/12/2017","Highways Maintenance","Planned Highways Maintenance","R2003"
"Wolverhampton City Council","http://opendatacommunities.org/id/metropolitan-district-council/wolverhampton","704271","Hilton Main Construction Limited","31612","12,538.53","R&M - Departmental response (external)","130199276","27/12/2017","Street Lighting","Street Lighting Maintenance","R2003"
"Wolverhampton City Council","http://opendatacommunities.org/id/metropolitan-district-council/wolverhampton","704271","Hilton Main Construction Limited","31680","3,020.80","R&M - Departmental response (external)","130198886","27/12/2017","Highways Maintenance","Planned Highways Maintenance","R2003"
"Wolverhampton City Council","http://opendatacommunities.org/id/metropolitan-district-council/wolverhampton","704271","Hilton Main Construction Limited","31684","249.84","R&M - Departmental response (external)","130198890","27/12/2017","Highways Maintenance","Gully Sweeping","R2003"
"Wolverhampton City Council","http://opendatacommunities.org/id/metropolitan-district-council/wolverhampton","704271","Hilton Main Construction Limited","31426","8,415.88","R&M - Departmental response (external)","130199137","15/12/2017","Highways Maintenance","Highway & Land Drainage","R2003"
"Wolverhampton City Council","http://opendatacommunities.org/id/metropolitan-district-council/wolverhampton","704271","Hilton Main Construction Limited","31547","730.00","R&M - Departmental planned (external)","130196728","15/12/2017","Facilities Management","Management of Vacant Properties","R2001"
"Wolverhampton City Council","http://opendatacommunities.org/id/metropolitan-district-council/wolverhampton","704271","Hilton Main Construction Limited","31660","2,175.00","Hire of Vehicles","190406307","29/12/2017","Fleet Services","Fleet Management","R3200"
"Wolverhampton City Council","http://opendatacommunities.org/id/metropolitan-district-council/wolverhampton","704271","Hilton Main Construction Limited","31622","-1,940.00","R&M - Departmental response (external)","130198196","08/12/2017","Highways Maintenance","Patching","R2003"
"Wolverhampton City Council","http://opendatacommunities.org/id/metropolitan-district-council/wolverhampton","704271","Hilton Main Construction Limited","31508","3,347.02","R&M - Departmental response (external)","130195698","06/12/2017","Highways Maintenance","Signs Non Illuminated","R2003"
"Wolverhampton City Council","http://opendatacommunities.org/id/metropolitan-district-council/wolverhampton","704271","Hilton Main Construction Limited","31439","2,614.16","R&M - Departmental response (external)","130199152","20/12/2017","Highways Maintenance","Patching","R2003"
"Wolverhampton City Council","http://opendatacommunities.org/id/metropolitan-district-council/wolverhampton","704271","Hilton Main Construction Limited","31696","240.15","Services - Professional Fees","190400768","08/12/2017","Fleet Services","Fleet Management","R4400"
"Wolverhampton City Council","http://opendatacommunities.org/id/metropolitan-district-council/wolverhampton","704271","Hilton Main Construction Limited","31619","-4,826.00","R&M - Departmental response (external)","130200649","29/12/2017","Highways Maintenance","Planned Highways Maintenance","R2003"
"Wolverhampton City Council","http://opendatacommunities.org/id/metropolitan-district-council/wolverhampton","704271","Hilton Main Construction Limited","31661","1,740.00","Hire of Vehicles","190406308","29/12/2017","Fleet Services","Fleet Management","R3200"
"Wolverhampton City Council","http://opendatacommunities.org/id/metropolitan-district-council/wolverhampton","704271","Hilton Main Construction Limited","31450","680.72","R&M - Departmental response (external)","130199139","15/12/2017","Highways Maintenance","Planned Highways Maintenance","R2003"
"Wolverhampton City Council","http://opendatacommunities.org/id/metropolitan-district-council/wolverhampton","704271","Hilton Main Construction Limited","31545","300.00","R&M - Departmental response (external)","130196726","15/12/2017","Environmental Maintenance","Ground Maintenance East","R2003"
"Wolverhampton City Council","http://opendatacommunities.org/id/metropolitan-district-council/wolverhampton","704271","Hilton Main Construction Limited","31548","1,250.00","R&M - Departmental planned (external)","130196729","15/12/2017","Facilities Management","Management of Vacant Properties","R2001"
"Wolverhampton City Council","http://opendatacommunities.org/id/metropolitan-district-council/wolverhampton","704271","Hilton Main Construction Limited","31656","2,888.93","R&M - Departmental response (external)","130198391","27/12/2017","Street Lighting","St Lighting Ext Recharges","R2003"
"Wolverhampton City Council","http://opendatacommunities.org/id/metropolitan-district-council/wolverhampton","704271","Hilton Main Construction Limited","31683","4,109.34","R&M - Departmental response (external)","130198889","27/12/2017","Highways Maintenance","Winter Maintenance","R2003"
"Wolverhampton City Council","http://opendatacommunities.org/id/metropolitan-district-council/wolverhampton","704271","Hilton Main Construction Limited","31678","7,827.50","R&M - Departmental response (external)","130198884","27/12/2017","Highways Maintenance","Patching","R2003"
"Wolverhampton City Council","http://opendatacommunities.org/id/metropolitan-district-council/wolverhampton","704271","Hilton Main Construction Limited","31503","2,300.00","R&M - Departmental response (external)","130195697","06/12/2017","Facilities Management","Parkfields Office Accomodation","R2003"
"Wolverhampton City Council","http://opendatacommunities.org/id/metropolitan-district-council/wolverhampton","704271","Hilton Main Construction Limited","31679","6,300.00","R&M - Departmental response (external)","130198885","27/12/2017","Highways Maintenance","Patching","R2003"
"Wolverhampton City Council","http://opendatacommunities.org/id/metropolitan-district-council/wolverhampton","704271","Hilton Main Construction Limited","31682","7,760.00","R&M - Departmental response (external)","130198888","27/12/2017","Highways Maintenance","Patching","R2003"
"Wolverhampton City Council","http://opendatacommunities.org/id/metropolitan-district-council/wolverhampton","704271","Hilton Main Construction Limited","31681","2,453.14","R&M - Departmental response (external)","130198887","27/12/2017","Highways Maintenance","Patching","R2003"
"Wolverhampton City Council","http://opendatacommunities.org/id/metropolitan-district-council/wolverhampton","704271","Hilton Main Construction Limited","31451","936.69","R&M - Departmental response (external)","130199140","15/12/2017","Highways Maintenance","Winter Maintenance","R2003"
"Wolverhampton City Council","http://opendatacommunities.org/id/metropolitan-district-council/wolverhampton","704271","Hilton Main Construction Limited","31516","-1,875.60","R&M - Departmental response (external)","130196239","15/12/2017","Highways Maintenance","Planned Highways Maintenance","R2003"
"Wolverhampton City Council","http://opendatacommunities.org/id/metropolitan-district-council/wolverhampton","704271","Hilton Main Construction Limited","31658","2,175.00","Hire of Vehicles","190406305","29/12/2017","Fleet Services","Fleet Management","R3200"
"Wolverhampton City Council","http://opendatacommunities.org/id/metropolitan-district-council/wolverhampton","704271","Hilton Main Construction Limited","31458","2,527.08","R&M - Departmental response (external)","130194271","08/12/2017","Highways Maintenance","Brook course, Culvert & Subway Maintenance","R2003"
"Wolverhampton City Council","http://opendatacommunities.org/id/metropolitan-district-council/wolverhampton","704289","HMCTS","Fryer001","400.00","Services - Fees and Charges","190406395","29/12/2017","Safeguarding","Court of Protection, Funerals and Protection of Property","R4401"
"Wolverhampton City Council","http://opendatacommunities.org/id/metropolitan-district-council/wolverhampton","704289","HMCTS","Fryer002","400.00","Services - Fees and Charges","190406394","29/12/2017","Safeguarding","Court of Protection, Funerals and Protection of Property","R4401"
"Wolverhampton City Council","http://opendatacommunities.org/id/metropolitan-district-council/wolverhampton","704320","Hometrack Date Systems (Hds) Limited","2396029","6,700.00","Services - Fees and Charges","130199175","29/12/2017","Housing","Housing Regeneration - Strategy & Development","R4401"
"Wolverhampton City Council","http://opendatacommunities.org/id/metropolitan-district-council/wolverhampton","704323","Hopcraft Memorials Limited","HM0342","64.00","Materials","130198197","08/12/2017","Bereavement Services","Cemeteries","R4007"
"Wolverhampton City Council","http://opendatacommunities.org/id/metropolitan-district-council/wolverhampton","704323","Hopcraft Memorials Limited","HM0342","116.00","Materials","130198197","08/12/2017","Bereavement Services","Cemeteries","R4007"
"Wolverhampton City Council","http://opendatacommunities.org/id/metropolitan-district-council/wolverhampton","704323","Hopcraft Memorials Limited","HM0337","116.00","Materials","130195889","01/12/2017","Bereavement Services","Cemeteries","R4007"
"Wolverhampton City Council","http://opendatacommunities.org/id/metropolitan-district-council/wolverhampton","704324","Hope Community Project Wolverhampton","H00023","1,002.00","TPP - Social Care Support Services","130199681","29/12/2017","Early Intervention","Transformation Challenge Award","R5501"
"Wolverhampton City Council","http://opendatacommunities.org/id/metropolitan-district-council/wolverhampton","704324","Hope Community Project Wolverhampton","H00017","1,742.00","TPP - Social Care Support Services","130186686","20/12/2017","Early Intervention","Transformation Challenge Award","R5501"
"Wolverhampton City Council","http://opendatacommunities.org/id/metropolitan-district-council/wolverhampton","704324","Hope Community Project Wolverhampton","H00022","1,742.00","TPP - Social Care Support Services","130197054","06/12/2017","Early Intervention","Transformation Challenge Award","R5501"
"Wolverhampton City Council","http://opendatacommunities.org/id/metropolitan-district-council/wolverhampton","704328","Horizon Care & Education Group Limited","8973","12,675.00","TPP - Independent Schools","130198899","15/12/2017","Standards and Vulnerable Pupils","SEN Education OOC","R5036"
"Wolverhampton City Council","http://opendatacommunities.org/id/metropolitan-district-council/wolverhampton","704328","Horizon Care & Education Group Limited","8963","12,675.00","TPP - Independent Schools","130198895","15/12/2017","Standards and Vulnerable Pupils","SEN Education OOC","R5036"
"Wolverhampton City Council","http://opendatacommunities.org/id/metropolitan-district-council/wolverhampton","704328","Horizon Care & Education Group Limited","8948","7,900.10","TPP - Independent Schools","130197776","15/12/2017","Standards and Vulnerable Pupils","SEN Education OOC","R5036"
"Wolverhampton City Council","http://opendatacommunities.org/id/metropolitan-district-council/wolverhampton","704328","Horizon Care & Education Group Limited","8961","12,675.00","TPP - Independent Schools","130198894","15/12/2017","Standards and Vulnerable Pupils","SEN Education OOC","R5036"
"Wolverhampton City Council","http://opendatacommunities.org/id/metropolitan-district-council/wolverhampton","704328","Horizon Care & Education Group Limited","8971","12,675.00","TPP - Independent Schools","130198898","15/12/2017","Standards and Vulnerable Pupils","SEN Education OOC","R5036"
"Wolverhampton City Council","http://opendatacommunities.org/id/metropolitan-district-council/wolverhampton","704328","Horizon Care & Education Group Limited","8954","13,055.25","TPP - Independent Schools","130197778","15/12/2017","Standards and Vulnerable Pupils","SEN Education OOC","R5036"
"Wolverhampton City Council","http://opendatacommunities.org/id/metropolitan-district-council/wolverhampton","704328","Horizon Care & Education Group Limited","8953","6,695.00","TPP - Independent Schools","130197777","15/12/2017","Standards and Vulnerable Pupils","SEN Education OOC","R5036"
"Wolverhampton City Council","http://opendatacommunities.org/id/metropolitan-district-council/wolverhampton","704328","Horizon Care & Education Group Limited","8965","12,675.00","TPP - Independent Schools","130198896","15/12/2017","Standards and Vulnerable Pupils","SEN Education OOC","R5036"
"Wolverhampton City Council","http://opendatacommunities.org/id/metropolitan-district-council/wolverhampton","704328","Horizon Care & Education Group Limited","8972","12,675.00","TPP - Independent Schools","130197779","15/12/2017","Standards and Vulnerable Pupils","SEN Education OOC","R5036"
"Wolverhampton City Council","http://opendatacommunities.org/id/metropolitan-district-council/wolverhampton","704328","Horizon Care & Education Group Limited","8956","6,695.00","TPP - Independent Schools","130198893","15/12/2017","Standards and Vulnerable Pupils","SEN Education OOC","R5036"
"Wolverhampton City Council","http://opendatacommunities.org/id/metropolitan-district-council/wolverhampton","704328","Horizon Care & Education Group Limited","8970","12,675.00","TPP - Independent Schools","130198897","15/12/2017","Standards and Vulnerable Pupils","SEN Education OOC","R5036"
"Wolverhampton City Council","http://opendatacommunities.org/id/metropolitan-district-council/wolverhampton","704390","I T Rogers & K M Noble","TWH0001-25","6,625.00","Rent","190404319","20/12/2017","Housing Revenue Account","Hostels / Outreach","R2200"
"Wolverhampton City Council","http://opendatacommunities.org/id/metropolitan-district-council/wolverhampton","704401","Ian Livie","INV10517","518.40","Equipment - Purchase","130196241","06/12/2017","Visitor Economy","Civic Halls Non-Direct Event Management Account","R4000"
"Wolverhampton City Council","http://opendatacommunities.org/id/metropolitan-district-council/wolverhampton","704401","Ian Livie","INV10520","1,564.00","Equipment - R & M","130196244","06/12/2017","Visitor Economy","Civic Halls Non-Direct Event Management Account","R4003"
"Wolverhampton City Council","http://opendatacommunities.org/id/metropolitan-district-council/wolverhampton","704401","Ian Livie","INV10514","100.00","Equipment - Hire","130196240","06/12/2017","Visitor Economy","Civic Halls Non-Direct Event Management Account","R4001"
"Wolverhampton City Council","http://opendatacommunities.org/id/metropolitan-district-council/wolverhampton","704401","Ian Livie","INV10513","340.00","Equipment - Hire","130195544","06/12/2017","Visitor Economy","Civic Halls Non-Direct Event Management Account","R4001"
"Wolverhampton City Council","http://opendatacommunities.org/id/metropolitan-district-council/wolverhampton","704401","Ian Livie","INV10516","1,400.00","Equipment - Hire","130195546","06/12/2017","Visitor Economy","Civic Halls Non-Direct Event Management Account","R4001"
"Wolverhampton City Council","http://opendatacommunities.org/id/metropolitan-district-council/wolverhampton","704401","Ian Livie","INV10515","770.00","Equipment - Hire","130195545","06/12/2017","Visitor Economy","Civic & Wulfrun Outhouse & Other Comercial Events","R4001"
"Wolverhampton City Council","http://opendatacommunities.org/id/metropolitan-district-council/wolverhampton","704401","Ian Livie","INV10519","3,999.50","Equipment - R & M","130196243","06/12/2017","Visitor Economy","Civic Halls Non-Direct Event Management Account","R4003"
"Wolverhampton City Council","http://opendatacommunities.org/id/metropolitan-district-council/wolverhampton","704401","Ian Livie","INV10518","409.80","Equipment - Purchase","130196242","06/12/2017","Visitor Economy","Civic Halls Non-Direct Event Management Account","R4000"
"Wolverhampton City Council","http://opendatacommunities.org/id/metropolitan-district-council/wolverhampton","704426","Idox Software Limited","7018458","40,500.00","Computing - Purchase of Software","130199683","27/12/2017","Licensing","Licensing - Private Hire Vehicles","R4531"
"Wolverhampton City Council","http://opendatacommunities.org/id/metropolitan-district-council/wolverhampton","704460","Include Me Too (Im2) Limited","0726C","11,328.00","TPP - Social Care Support Services","130196245","01/12/2017","Early Intervention","Transformation Challenge Award","R5501"
"Wolverhampton City Council","http://opendatacommunities.org/id/metropolitan-district-council/wolverhampton","704463","Inclusive Technology Limited","154707","256.50","Equipment - Purchase","130197558","27/12/2017","Standards and Vulnerable Pupils","SEN Early Years Team","R4000"
"Wolverhampton City Council","http://opendatacommunities.org/id/metropolitan-district-council/wolverhampton","704469","Indespension Limited","2349110","12.75","Equipment - Purchase","190399011","01/12/2017","Fleet Services","Fleet Management","R4000"
"Wolverhampton City Council","http://opendatacommunities.org/id/metropolitan-district-council/wolverhampton","704469","Indespension Limited","2351618","27.00","Equipment - Purchase","190404669","20/12/2017","Fleet Services","Fleet Management","R4000"
"Wolverhampton City Council","http://opendatacommunities.org/id/metropolitan-district-council/wolverhampton","704469","Indespension Limited","2349798","69.95","Equipment - Purchase","190399012","01/12/2017","Fleet Services","Fleet Management","R4000"
"Wolverhampton City Council","http://opendatacommunities.org/id/metropolitan-district-council/wolverhampton","704469","Indespension Limited","2353591","24.45","Equipment - Purchase","190404670","20/12/2017","Fleet Services","Fleet Management","R4000"
"Wolverhampton City Council","http://opendatacommunities.org/id/metropolitan-district-council/wolverhampton","704469","Indespension Limited","2350580","195.00","Equipment - Purchase","190400145","06/12/2017","Fleet Services","Fleet Management","R4000"
"Wolverhampton City Council","http://opendatacommunities.org/id/metropolitan-district-council/wolverhampton","704469","Indespension Limited","2350579","11.48","Equipment - Purchase","190400144","06/12/2017","Fleet Services","Fleet Management","R4000"
"Wolverhampton City Council","http://opendatacommunities.org/id/metropolitan-district-council/wolverhampton","704469","Indespension Limited","2350579","30.33","Equipment - Purchase","190400144","06/12/2017","Fleet Services","Fleet Management","R4000"
"Wolverhampton City Council","http://opendatacommunities.org/id/metropolitan-district-council/wolverhampton","704469","Indespension Limited","2350579","8.96","Equipment - Purchase","190400144","06/12/2017","Fleet Services","Fleet Management","R4000"
"Wolverhampton City Council","http://opendatacommunities.org/id/metropolitan-district-council/wolverhampton","704472","Indo Lighting Limited","S AJ/2017/1490","5,869.62","Materials","130196384","13/12/2017","Street Lighting","Street Lighting Maintenance","R4007"
"Wolverhampton City Council","http://opendatacommunities.org/id/metropolitan-district-council/wolverhampton","704488","Initial Projects Limited T/A Enitial","76579","225.00","Services - Professional Fees","130197559","27/12/2017","Public Protection","Bowmans Harbour","R4400"
"Wolverhampton City Council","http://opendatacommunities.org/id/metropolitan-district-council/wolverhampton","704489","Initial Washroom Solutions","32520905","21.82","Equipment - Purchase","130199052","13/12/2017","Markets","Bilston Market and Licensed Operations","R4000"
"Wolverhampton City Council","http://opendatacommunities.org/id/metropolitan-district-council/wolverhampton","704489","Initial Washroom Solutions","32550583","20.13","Cleaning Supplies and Materials","130196899","06/12/2017","Bereavement Services","Crematorium","R2705"
"Wolverhampton City Council","http://opendatacommunities.org/id/metropolitan-district-council/wolverhampton","704489","Initial Washroom Solutions","32550585","73.53","Cleaning Supplies and Materials","130196385","06/12/2017","Facilities Management","Culwell Street Depot","R2705"
"Wolverhampton City Council","http://opendatacommunities.org/id/metropolitan-district-council/wolverhampton","704489","Initial Washroom Solutions","32514191","27.31","Cleaning Supplies and Materials","130192899","13/12/2017","Adults Assessment & Care Management North","Assessment Team (North)","R2705"
"Wolverhampton City Council","http://opendatacommunities.org/id/metropolitan-district-council/wolverhampton","704489","Initial Washroom Solutions","32490266","21.82","Equipment - Purchase","130199051","13/12/2017","Markets","Bilston Market and Licensed Operations","R4000"
"Wolverhampton City Council","http://opendatacommunities.org/id/metropolitan-district-council/wolverhampton","704489","Initial Washroom Solutions","32550587","63.19","Cleaning Supplies and Materials","130196386","06/12/2017","Facilities Management","Hickman Avenue Depot","R2705"
"Wolverhampton City Council","http://opendatacommunities.org/id/metropolitan-district-council/wolverhampton","704489","Initial Washroom Solutions","32543638","27.31","Cleaning Supplies and Materials","130196248","06/12/2017","Adults Assessment & Care Management North","Assessment Team (North)","R2705"
"Wolverhampton City Council","http://opendatacommunities.org/id/metropolitan-district-council/wolverhampton","704489","Initial Washroom Solutions","32550584","36.44","Cleaning Supplies and Materials","130196732","13/12/2017","Adults Assessment & Care Management North","Assessment Team (North)","R2705"
"Wolverhampton City Council","http://opendatacommunities.org/id/metropolitan-district-council/wolverhampton","704524","Integrated Water Services Limited","CD200064760","347.82","R&M - Departmental planned (external)","130197572","27/12/2017","Maintenance Programme","Centralised R&M","R2001"
"Wolverhampton City Council","http://opendatacommunities.org/id/metropolitan-district-council/wolverhampton","704524","Integrated Water Services Limited","CD200049677","347.82","R&M - Departmental planned (external)","130181780","20/12/2017","Maintenance Programme","Centralised R&M","R2001"
